Workbook

Sheet Cover Page
D1: Add company logo
N2: Version 24.2a (for incinerators) - 27/11/24
N4: Note that there is another version of this template available for co-incinerators
B8: Add photo
N13: Notes:
N14: This template may require adjustments by individual operators to meet specific reporting requirements as defined in the site Permit(s)
B29: Annual Performance Report 2024
B31: Permit EPR/XP3005LB
B33: Runcorn Energy From Waste Facility
B35: Runcorn EfW
B37: Viridor Energy Limited
B39: Year: | C39: 2024
B41: Address: | C41: Barlow Way, Runcorn WA7 4HG
B43: Tel: | C43: 7788754223
B45: Email: | C45: glenn.powell@viridor.com
B47: Prepared by: | C47: Glenn Powell | F47: Position: | G47: Technical compliance lead
B49: Approved by: | C49: Darren Bolton | F49: Position: | G49: Plant Manager
B51: Version: | C51: 24.2a
B53: Issue Date: | C53: 2024-11-27

Sheet Contents
A1: =+'Cover Page'!$B$29 -> Annual Performance Report 2024 | E1: =+'Cover Page'!$B$33 -> Runcorn Energy From Waste Facility
A3: Contents | K3: Notes:
A4: Section | B4: Subject | H4: Page | K4: Section references and Page nos. to be inserted
B5: Facility Information | H5: 1 | K5: Sections and Subjects may require adjustment by individual operators to meet specific reporting requirements as defined in the sites Permit(s)
B6: Operational Data | H6: 2
B7: Operational Summary | H7: 3
B8: Performance Form 1 | H8: 4
B9: Energy Form 1 | H9: 5
B10: Permit Compliance | H10: 6
B11: Improvements | H11: 7
B12: Public Liaison | H12: 8
B13: Carbon dioxide and nitrous oxide emissions | H13: 9
B14: Residue Quality | H14: 10
B15: Emissions to Water | H15: 11
B16: Emissions to Air (periodically monitored) | H16: 12
B17: Emissions to Air (continuously monitored) | H17: 13
B18: Hydrogen Chloride emissions | H18: 14
B19: Sulphur Dioxide emissions | H19: 15
B20: Oxides of Nitrogen emissions | H20: 16
B21: Total Organic Carbon emissions | H21: 17
B22: Particulate Matter emissions | H22: 18
B23: Carbon Monoxide emissions | H23: 19
B24: Ammonia emissions | H24: 20
A27: Version Control
A28: Section | B28: Information | H28: Date
A35: Distribution
A36: Copy | B36: Name, Role | H36: No.
A45: This report is required under the Industrial Emissions Directive’s Article 55(2) requirements on reporting and public information on waste incineration plants and co-incineration plants, which require the operator to produce an annual report on the functioning and monitoring of the plant and make it available to the public.

Sheet Facility Info
A1: =+'Cover Page'!$B$29 -> Annual Performance Report 2024 | E1: =+'Cover Page'!$B$33 -> Runcorn Energy From Waste Facility
A3: Plant Description and Design | K3: Notes:
A5: Runcorn Energy from Waste (EfW) facility is located to the north of the Runcorn site known as Weston Point. The EfW facility has a total capacity of approximately 350MW (thermal input) and is capable of generating up to approximately 86MW of electrical power and 110 tonnes per hour steam. The plant comprises of two parts: Phase 1 and Phase 2. Phase 1 consists of two lines 1 and 2. Phase 2 consists of two further lines; 3 and 4. The capacity of the facility is 1,100,000 tonnes per calendar year. | K5: Include summary of plant design, design capacity, no. of combustion lines, electrical and heat capacity and any other general information that describes the facility, its location and purpose
A20: Summary of Operational Processes and Procedures
A22: Incoming refuse vehicles and bulk transport enter the site and proceed to the incoming weighbridge. After weighing in, the vehicles continue to the enclosed reception hall where they will discharge their load into the waste storage bunker. Vehicle loads are inspected randomly in the tipping hall to confirm the nature of incoming waste. Once vehicles have deposited their waste they leave the site via a second weighbridge. Potential emissions of odour and dust from the tipping hall and refuse bunkers are controlled by forced draught fans located above the refuse bunkers. These draw air from the bunker hall and reception area into the furnace to feed the combustion process, creating a slight negative pressure. The waste combustion takes place on a Keppel Seghers grate, the heat generated being used to create superheated steam which is used to drive the steam turbine and generate electricity. Heat from turbine bleeds can be used for combined heat and power systems and is also used for pre-heating of combustion air and operation of the deaerator to maximise efficiency. Condensing of the steam takes place via cooling towers and the condensate cycles back around in a closed system (other than necessary top up). Emission control is via injection of ammonia into the furnace for NOx control via SNCR technology while at the end of the boiler and gas path lime and activated carbon are added to remove acidic gases, dioxins, furans and heavy metals before this is all filtered by a bag filter system to remove the lime, carbon and particulates from the flue gases producing APCr. Emissions are measured continuously in stack and by extractive stack measurements as required by the environmental permit. Residues from the process, IBA and APCr are both sent to specialist reprocessing sites. IBA has metals removed for recyling and is reprocessed into IBAA (Incinerator Bottom Ash Aggregate). The APCr is sent to OCO Technology (formally Carbon8) who use accelerated carbonation technology to produce a carbon negative aggregate material which encapsulates the absorbed substances from the APCr. Maintenance is controlled by a CMMS system and consists of planned preventative maintenance (ppm), derived from both experience of the plant and OEM requirements, and reactive maintenance. The site has two annual shutdown periods (one per Phase) during which maintenance and statutory inspections are carried out. The plant operates a document control system meeting the requirements of the Viridor document management system and ISO 9001, 14001, 45001 and 50001. On December 18th 2020 the sites Environmental Permit was transfered from Viridor Waste Management to Viridor Energy and a new permit number issued (EPR/XP3005LB) | K22: Include summary of key processes and procedures such as (but not limited to); waste reception, control rooms, grate, bed and boiler, energy & heat generation, cooling systems, residue management, emission controls, health and safety systems, maintenance

Sheet Operational Data
A1: =+'Cover Page'!$B$29 -> Annual Performance Report 2024 | E1: =+'Cover Page'!$B$33 -> Runcorn Energy From Waste Facility
A3: Operational Data
A4: Plant Size | B4: 1100000 | D4: tonnes pa | E4: 38 | F4: MWth | G4: 51 | H4: MWe | J4: Notes:
A5: No. of combustion lines | B5: 4 | D5: No. of Turbines: | F5: 2 | J5: * - RDF to include SRF
J6: ** - Combusted tonnage = tonnes delivered in period + (tonnes in bunker at start of period – tonnes in bunker at end of period), or equivalent calculation depending on plant type
A7: Waste types received | B7: Unit | C7: Q1 | D7: Q2 | E7: Q3 | F7: Q4 | G7: Year Total | H7: %
A8: Household / Local Authority | B8: tonnes | C8: 267913 | D8: 258590.8 | E8: 252964.56 | F8: 236830.22 | G8: =SUM(C8:F8) -> 1016298.58 | H8: =IF(G8>0,G8/$G$18,"-") -> 1
A9: Commercial & Industrial | G9: =SUM(C9:F9) -> 0 | H9: - | J9: *** - CHP plants only
A10: Hazardous | G10: 0 | H10: - | J10: **** Availability Definition: 'the availability of a line is to be calculated by the number of hours the line reported Continuously Monitored emission levels to the Regulator through the calendar year divided by the total number of hours in that year. The overall plant availability is calculated as the Mean of all lines in the plant. For clarity this includes periods of abnormal operation.' Rationale: The primary function of an Energy from Waste facility is the disposal of waste. It follows therefore that the availability of a plant is determined by the period of time a facility spends undertaking this activity.
A11: Clinical | G11: 0 | H11: -
A12: Waste wood (biomass) | G12: 0 | H12: -
A13: Refuse Derived Fuel * - H'hold/LA | G13: =SUM(C13:F13) -> 0 | H13: -
A14: Refuse Derived Fuel * - C&I | G14: 0 | H14: -
A15: Other [Please specify] | G15: 0 | H15: -
A16: Other [Please specify] | G16: 0 | H16: -
A17: Other [Please specify] | G17: 0 | H17: -
A18: Total waste received | C18: =SUM(C8:C17) -> 267913 | D18: =SUM(D8:D17) -> 258590.8 | E18: =SUM(E8:E17) -> 252964.56 | F18: =SUM(F8:F17) -> 236830.22 | G18: 1016298.58
A19: Rejected Waste | G19: =SUM(C19:F19) -> 0 | H19: =IF(G19>0,G19/$G$18,"-") -> -
A20: Unprocessed waste transferred out | G20: =SUM(C20:F20) -> 0 | H20: =IF(G20>0,G20/$G$18,"-") -> -
A21: Total waste combusted ** | C21: 254079.67 | D21: 253781.98 | E21: 248962.2 | F21: 234400.46 | G21: =SUM(C21:F21) -> 991224.31
J22: Password for protected cells A password has been set to prevent accidental editing of cells with formulae. If you still need to make an edit for some reason then the password = 1234
A23: Energy Usage / Export | B23: Unit | C23: Q1 | D23: Q2 | E23: Q3 | F23: Q4 | G23: Year Total | H23: KWh/te
A24: Power Generated | B24: MWh | C24: 179224.54 | D24: 176083.63 | E24: 180457.47 | F24: 157243.9 | G24: =SUM(C24:F24) -> 693009.54 | H24: =IF(G24>0,G24*1000/$G$21,"-") -> 699.14502
A25: Power Exported | C25: 158341.57 | D25: 154873.35 | E25: 158559.71 | F25: 138047.13 | G25: =SUM(C25:F25) -> 609821.76 | H25: =IF(G25>0,G25*1000/$G$21,"-") -> 615.2207466
A26: Power Used on site | C26: =C24-C25 -> 20882.97 | D26: 21221.429 | E26: 21920 | F26: 19969.709 | G26: =SUM(C26:F26) -> 83994.108 | H26: =IF(G26>0,G26*1000/$G$21,"-") -> 84.73774014
A27: Power Imported | C27: 0 | D27: =11149/1000 -> 11.149 | E27: 21.919 | F27: =(78732+694207)/1000 -> 772.939 | G27: 806.007 | H27: =IF(G27>0,G27*1000/$G$21,"-") -> 0.8131428899
A28: Parasitic Load | B28: % | C28: =IF(C24>0,1-C25/(C24+C27),"-") -> 0.1165184745 | D28: =IF(D24>0,1-D25/(D24+D27),"-") -> 0.1205114037 | E28: =IF(E24>0,1-E25/(E24+E27),"-") -> 0.1214525333 | F28: =IF(F24>0,1-F25/(F24+F27),"-") -> 0.1263770945 | G28: =IF(G24>0,1-G25/(G24+G27),"-") -> 0.1210606873
A29: Thermal Energy Produced *** | B29: MWh | G29: =SUM(C29:F29) -> 0 | H29: =IF(G29>0,G29*1000/$G$21,"-") -> -
A30: Thermal Energy Exported *** | C30: 119009.1088 | D30: 109574.1561 | E30: 78977.55174 | F30: 89631.86769 | G30: 397192.6844 | H30: =IF(G30>0,G30*1000/$G$21,"-") -> 400.709184
A31: R1 value (if applicable) | B31: R1
A33: Waste Disposal & Recovery | B33: Unit | C33: Q1 | D33: Q2 | E33: Q3 | F33: Q4 | G33: Year Total | H33: % inputs
A34: APC Residues - produced | B34: tonnes | C34: 9042.52 | D34: 7738.34 | E34: 7943.88 | F34: 6949 | G34: =SUM(C34:F34) -> 31673.74 | H34: =IF(G34>0,G34/$G$21,"-") -> 0.0319541598
A35: IBA - produced | C35: 50202.74 | D35: 52088.05 | E35: 51564.72 | F35: 44402 | G35: 198257.51 | H35: =IF(G35>0,G35/$G$21,"-") -> 0.20001276
A36: Metals recycling | G36: =SUM(C36:F36) -> 0 | H36: -
A37: Other | C37: 0 | D37: 0 | E37: 0 | F37: 0 | G37: =SUM(C37:F37) -> 0 | H37: -
A38: Other | C38: 0 | D38: 0 | E38: 0 | F38: 0 | G38: 0 | H38: -
A39: Other | C39: 0 | D39: 0 | E39: 0 | F39: 0 | G39: 0 | H39: -
A41: Raw Material Usage | B41: Unit | C41: Q1 | D41: Q2 | E41: Q3 | F41: Q4 | G41: Year Total | H41: kg or Ltr /te
A42: Mains Water | B42: ltrs | C42: 204761000 | D42: 157720000 | E42: 116939000 | F42: 132074000 | G42: =SUM(C42:F42) -> 611494000 | H42: =IF(G42>0,G42/$G$21,"-") -> 616.9077915
A43: Other Water | B43: ltrs | C43: 486677410.4 | D43: 510095695.8 | E43: 570945000 | F43: 435555647 | G43: 2003273753 | H43: =IF(G43>0,G43/$G$21,"-") -> 2021.009506
A44: Ammonia | B44: kgs | C44: 551380 | D44: 473530 | E44: 497880 | F44: 447580 | G44: 1970370 | H44: 1.987814443
A45: Urea | B45: kgs | G45: =SUM(C45:F45) -> 0 | H45: -
A46: Activated Carbon | B46: kgs | C46: 54318.88 | D46: 55210 | E46: 59000 | F46: 76170.87 | G46: 244699.75 | H46: 0.246866171
A47: Lime / hydrated lime | B47: kgs | C47: 4941580 | D47: 4026360 | E47: 3998000 | F47: 3731120 | G47: 16697060 | H47: 16.84488549
A48: Fuel oil | B48: ltrs | G48: 0 | H48: -
A49: Gas | B49: cuf | C49: 42974.39545 | D49: 56716.92745 | E49: 63576.81366 | F49: 198026.3158 | G49: 361294.4523
A50: Other | G50: 0
A52: Summary | B52: Line/Unit | C52: Q1 | D52: Q2 | E52: Q3 | F52: Q4 | G52: Year Total | I52: Hrs in year
A53: Availability of waste combustion by line, hrs **** | B53: 1 | C53: 2128 | D53: 2181 | E53: 2053 | F53: 2030.5 | G53: =SUM(C53:F53) -> 8392.5 | H53: =+G53/$I$53 -> 0.9580479452 | I53: 8760 | J53: Change this figure to 8784 in a leap year
B54: 2 | C54: 2166 | D54: 2011 | E54: 2166 | F54: 2080.5 | G54: 8423.5 | H54: =+G54/$I$53 -> 0.961586758
B55: 3 | C55: 2134 | D55: 1987 | E55: 1956 | F55: 1822 | G55: 7899 | H55: 0.9017123288
B56: 4 | C56: 2068 | D56: 2181 | E56: 2165 | F56: 1868 | G56: 8282 | H56: 0.94543379
B57: 5 | G57: =SUM(C57:F57) -> 0 | H57: 0
A58: Overall Availability, mean avg. of all lines, hrs | C58: =AVERAGE(C53:C56) -> 2124 | D58: =AVERAGE(D53:D56) -> 2090 | E58: =AVERAGE(E53:E56) -> 2085 | F58: =AVERAGE(F53:F56) -> 1950.25 | G58: =AVERAGE(G53:G56) -> 8249.25 | H58: 0.9416952055
A59: Hours of turbine operations, hrs | B59: 1 | C59: 2184 | D59: 2181 | E59: 2208 | F59: 2180 | G59: 8753 | H59: 0.9992009132
A60: Hours of turbine operations, hrs | B60: 2 | C60: 2184 | D60: 2184 | E60: 2202 | F60: 1831 | G60: 8401 | H60: 0.9590182648
A61: Hours of heat / steam export | C61: 2184 | D61: 2184 | E61: 2208 | F61: 2208 | G61: 8784 | H61: =IF(B61>0,G60/I53,"n/a") -> n/a
A62: Net Calorific Value of waste | B62: MJ/kg | C62: 11.07 | D62: 10.785 | E62: 11.06 | F62: 10.57
A63: Abnormal Events | B63: qty. | G63: 0 | H63: =IF(G63>0,"yes","no") -> no
A64: Abnormal operation | B64: hours | G64: 0 | H64: =+(G64)/I53 -> 0
A65: Permit Breaches | B65: qty. | C65: 5 | D65: 6 | E65: 2 | F65: 2 | G65: 15 | H65: =IF(G65>0,"yes","no") -> yes

Sheet Operational Summary
A1: =+'Cover Page'!$B$29 -> Annual Performance Report 2024 | E1: =+'Cover Page'!$B$33 -> Runcorn Energy From Waste Facility
A3: Summary of Plant Operations and Maintenance during the reporting year | K3: Notes:
A5: During the year of 2024 the site facility accepted 1,016,299 tonnes of waste from municipal sources and processed 991.224 tonnes of waste. The facility generated 693,010 MW of electricity, exporting 609,822 MW while generating 397,193 tonnes in the form of steam for use within the connected Inovyn works. Overall availability for the whole of 2024 was 94.2% acorss the 4 lines. | K5: Include summary of key operational and/or maintenance activity undertaken in the year, such as any major component upgrades and/or replacements
A29: Summary of Residue Handling for the reporting year
A31: All IBA has been assessed as non hazardous. | K31: Include in here a summary of residue handling regimes and destinations
A54: =+'Cover Page'!C39 -> 2024 | B54: Plant shut-downs
A55: Date | B55: Reason for shut-down | K55: Provide a very brief reason for plant shut-down e.g. "Shut-down prior to major outage"; "Emergency shut-down due to boiler tube leak" There is no need to include periods of hot-standby here (e.g. to clear feed chute hopper blockages). For clinical waste incinerators which require regular shut-downs for boiler cleaning, there is no need to record these here.
A56: 2024-02-15 | B56: Boiler tube leak - Line 4
A57: 2024-03-05 | B57: Superheater drain repair - Line 1
A58: 2024-03-28 | B58: Boiler tube leak - Line 3
A59: 2024-04-07 | B59: Boiler tube leak - Line 2
A60: 2024-04-21 | B60: Boiler tube leak - Line 2
A61: 2024-05-20 | B61: Boiler tube leak - Line 2
A62: 2024-05-08 | B62: Boiler tube leak - Line 3
A63: 2024-05-21 | B63: Boiler tube leak - Line 3
A64: 2024-07-06 | B64: Superheater drain repair - Line 1
A65: 2024-09-05 | B65: Ash crane issues - Line 4
A66: 2024-10-03 | B66: Planned outage - Line 4
A67: 2024-10-19 | B67: Boiler tube leak - Line 2
A68: 2024-11-04 | B68: Superheater repair - Line 1
A69: 2024-11-08 | B69: Blocked ash extractor - Line 2

Sheet Perf. Form 1
A1: =+'Cover Page'!C39 -> 2024 | B1: Annual Reporting Performance Form 1
A3: =+'Cover Page'!B31 -> Permit EPR/XP3005LB | F3: Operator: | G3: =+'Cover Page'!B37 -> Viridor Energy Limited
A4: Facility: | B4: =+'Cover Page'!B33:I33 -> Runcorn Energy From Waste Facility | F4: Form: | G4: Performance 1
A6: Reporting Period from: | D6: 2024-01-01 | F6: to: | G6: 2024-12-31
A8: =+A1 -> 2024 | B8: Annual Reporting of Waste Disposal and Recovery
A9: Waste Description | C9: Disposal Route(s) | E9: Disposal Tonnes | G9: Recovery Tonnes | I9: % / tonne of waste incinerated
A10: 1) Hazardous Wastes
A11: APC Residues | G11: ='Operational Data'!G34 -> 31673.74 | I11: =IF((E11+G11)>0,(E11+G11)/'Operational Data'!$G$21, "-") -> 0.0319541598
A12: IBA | I12: =IF((E12+G12)>0,(E12+G12)/'Operational Data'!$G$21, "-") -> -
I13: =IF((E13+G13)>0,(E13+G13)/'Operational Data'!$G$21, "-") -> -
I14: =IF((E14+G14)>0,(E14+G14)/'Operational Data'!$G$21, "-") -> -
A15: Total Hazardous Waste | E15: =SUM(E11:F14) -> 0 | G15: =SUM(G11:H14) -> 31673.74 | I15: =IF((E15+G15)>0,(E15+G15)/'Operational Data'!$G$21, "-") -> 0.0319541598
A17: 2) Non-Hazardous Wastes
A18: IBA | G18: ='Operational Data'!G35 -> 198257.51 | I18: =IF((E18+G18)>0,(E18+G18)/'Operational Data'!$G$21, "-") -> 0.20001276
A19: Ferrous Metal | I19: =IF((E19+G19)>0,(E19+G19)/'Operational Data'!$G$21, "-") -> -
A20: Process Water | I20: =IF((E20+G20)>0,(E20+G20)/'Operational Data'!$G$21, "-") -> -
I21: =IF((E21+G21)>0,(E21+G21)/'Operational Data'!$G$21, "-") -> -
I22: =IF((E22+G22)>0,(E22+G22)/'Operational Data'!$G$21, "-") -> -
A23: Total Non-Hazardous Waste | E23: =SUM(E18:F22) -> 0 | G23: =SUM(G18:H22) -> 198257.51 | I23: =IF((E23+G23)>0,(E23+G23)/'Operational Data'!$G$21, "-") -> 0.20001276
A24: TOTAL WASTE | E24: =+E23+E15 -> 0 | G24: =+G23+G15 -> 229931.25 | I24: =IF((E24+G24)>0,(E24+G24)/'Operational Data'!$G$21, "-") -> 0.2319669198
A26: Operator’s comments :
A31: =+A1 -> 2024 | B31: Annual Reporting of Water and Other Raw Material Usage
A32: Raw Material | E32: Usage | G32: Unit | H32: Specific Usage | J32: Unit
A33: Mains Water | E33: =+'Operational Data'!G42/1000 -> 611494 | G33: m3 | H33: =IF(E33>0,E33/'Operational Data'!$G$21,"-") -> 0.6169077915 | J33: m3/te
A34: Total Water | E34: ='[1]Operational Data'!$G$38+'[1]Operational Data'!$G$39 -> 2047138106 | G34: m3 | H34: =IF(E34>0,E34/'Operational Data'!$G$21,"-") -> 2065.262207 | J34: m3/te
A35: Urea / Ammonia | E35: =+'Operational Data'!G44 -> 1970370 | G35: kg | H35: =IF(E35>0,E35/'Operational Data'!$G$21,"-") -> 1.987814443 | J35: kg/te
A36: Activated Carbon | E36: =+'Operational Data'!G46 -> 244699.75 | G36: kg | H36: =IF(E36>0,E36/'Operational Data'!$G$21,"-") -> 0.246866171 | J36: kg/te
A37: Lime / hydrated lime / Sodium Bicarb. | E37: =+'Operational Data'!G47 -> 16697060 | G37: kg | H37: =IF(E37>0,E37/'Operational Data'!$G$21,"-") -> 16.84488549 | J37: kg/te
A39: Operator’s comments :
A43: =+A31 -> 2024 | B43: Annual Reporting of other performance indicators
A44: Parameter | C44: Results by Line
C45: A1 | D45: A2 | E45: A3 | F45: A4 | G45: A5 | I45: Turbine 1 | J45: Turbine 2
A46: Operating hours for the year, hours | C46: ='Operational Data'!G53 -> 8392.5 | D46: ='Operational Data'!G54 -> 8423.5 | E46: ='Operational Data'!G55 -> 7899 | F46: ='Operational Data'!G56 -> 8282 | I46: ='Operational Data'!G59 -> 8753 | J46: ='Operational Data'!G60 -> 8401
A47: Number of periods of abnormal operation, qty.
A48: Cumulative hours of abnormal operation for this year, hours
A50: Operator’s comments :
A54: Signed: | G54: Date:

Sheet Energy Form 1
A1: =+'Cover Page'!C39 -> 2024 | B1: Annual Reporting of Energy Usage/Export
A3: =+'Cover Page'!B31 -> Permit EPR/XP3005LB | F3: Operator: | G3: =+'Cover Page'!B37 -> Viridor Energy Limited
A5: Facility: | B5: =+'Cover Page'!B33:I33 -> Runcorn Energy From Waste Facility | F5: Form: | G5: Energy 1
A7: Reporting Period from: | D7: =+'Perf. Form 1'!D6:E6 -> 2024-01-01 | F7: to: | G7: =+'Perf. Form 1'!G6:H6 -> 2024-12-31
A9: Energy Source | D9: Energy Usage | F9: Unit | G9: Specific Usage (KWh/tonne incinerated
A10: Electricity Produced | D10: =+'Operational Data'!G24 -> 693009.54 | F10: MWh | G10: =+'Operational Data'!H24 -> 699.14502
A11: Electricity Imported | D11: =+'Operational Data'!G27 -> 806.007 | F11: MWh | G11: =+'Operational Data'!H27 -> 0.8131428899
A12: Electricity Exported | D12: =+'Operational Data'!G25 -> 609821.76 | F12: MWh | G12: =+'Operational Data'!H25 -> 615.2207466
A13: Gas Oil | F13: tonnes
A14: Steam/hot water exported | D14: =+'Operational Data'!G30 -> 397192.6844 | F14: GWh | G14: =+'Operational Data'!H30 -> 400.709184
A18: Operator’s comments :
A29: Signed: | G29: Date:

Sheet Permit Compliance
A1: =+'Cover Page'!$B$29 -> Annual Performance Report 2024 | E1: =+'Cover Page'!$B$33 -> Runcorn Energy From Waste Facility
A3: Summary of Permit Compliance
A5: Compliance with permit limits for continuously monitored pollutants
A7: The plant met its emission limits as shown in the table below:
A8: Substance | C8: Percentage time compliant during operationNote 1 | L8: Notes:
C9: Half-hourly limit | F9: Daily limit | L9: Note 1: Please report to 2 decimal places, i.e. xx.xx% Note 2: Please enter into this table any permit non-compliances that the EA has given a CCS score for. Please also enter any other non-compliances which you have notified to the EA (e.g. ELV exceedances) but which have not yet been assessed by the EA. There is no need to enter any notifications which were subsequently assessed by the EA not to be permit breaches. Note 3: Please enter information here (rather than just referencing the notifications that were sent to the EA) including where relevant the incineration line reference, pollutant and value of the measured result for any ELV exceedances.
A10: Particulates | C10: 1 | F10: 0.9999
A11: Oxides of nitrogen | C11: 1 | F11: 0.9999
A12: Sulphur dioxide | C12: 0.9999 | F12: 1
A13: Carbon monoxide | C13: 100.00 % 95% of 10-min averages | F13: 0.9999
A14: Total organic carbon | C14: 0.9994 | F14: 1
A15: Hydrogen chloride | C15: 0.9999 | F15: 1
A16: Hydrogen fluoride | C16: 1 | F16: 1
A19: Summary of non-compliances under the permit Note 2
A20: Date | B20: Summary of non-compliance Note 3 | D20: Reason | G20: Measures taken to prevent reoccurrence | H20: CCS score if applicable*
H21: Impact | I21: Root cause
A22: 2024-01-18 | B22: 30-min TOC | D22: I.D. Fan trip | G22: As detailed in Part B
A23: 2024-02-08 | B23: 30-min TOC | D23: I.D. Fan trip | G23: As detailed in Part B
A24: 2024-02-14 | B24: 4 x 30-min TOC | D24: poor combustion conditions initially, then Cems prefilter issues. | G24: As detailed in Part B
A25: 2024-03-18 | B25: 30-min TOC | D25: Expolsion on the grate | G25: Increased vigilance on incoming waste
A26: 2024-03-19 | B26: Daily Nox | D26: Abnormal operation issue with Ammonia delivery p/p's | G26: Considered as AO, but added for completeness until CAR received.
A27: 2024-05-03 | B27: 30-min HCl | D27: Issue with lime dosing system during maintenance | G27: Only take 1 compartment oos at any one time
A28: 2024-05-23 | B28: 30-min TOC | D28: Online cleaning caused distruption in combustion conditions when access door opened. Boiler tripped on low pressure | G28: Operations to monitor boiler pressures during future cleaning.
B29: 30-min SO2 | D29: Online cleaning caused distruption in combustion conditions when access door opened. Boiler tripped on low pressure | G29: Operations to monitor boiler pressures during future cleaning.
A30: 2024-06-14 | B30: 30-min HCl | D30: Sudden increase in raw gas HCl and system could not recover in Auto mode. Intervention by operator required. | G30: Communications to fuel supply team regarding PVC content of wastes. Operation to be vigilant is high raw gas HCl concentrations occur.
A31: 2024-07-30 | B31: 30-min TOC | D31: Radio interference caused I.D. fan trip | G31: Now restriced area for radio use
A32: 2024-07-30 | B32: Daily CO | D32: Predictive software issue | G32: Issue resolved, regular cross checks and full system survey
A33: 2024-09-23 | B33: Daily CO | D33: Unaware of daily predictor score for CO | G33: Reduced load but could not recover the Day. Increased vigilance.
A34: 2024-10-17 | B34: Daily Particulates | D34: High moiture reading gave excessive multiplyer | G34: Not believed to be a true breach
A35: 2024-11-02 | B35: 30-min TOC | D35: Explosion on the grate | G35: Increased vigilance on incoming waste
A36: 2024-11-20 | B36: 30-min SO2 | D36: Higher than usual raw gas HCl | G36: Manually intervene with lime dosing where required
A38: *If the Environment Agency (EA) has given a Compliance Classification Scheme (CCS) score due to a permit non-compliance it should be entered here (CCS4 = No impact; CCS3 = Minor impact; CCS2 = Significant impact; CCS1 = Major impact). If the EA has not yet assessed a non-compliance which you have notified to them, these columns should be left blank. Enter N/A if no score was given for the root cause.
A40: Summary of any complaints received and actions to taken to resolve them.
A41: Date | B41: Summary of complaint [including Line/Reference] | E41: Reason (including whether substantiated by the operator or the EA) | H41: Measures taken to prevent reoccurrence
A42: 2024-05-01 | B42: Odour complaint | E42: Unsubstantiated
A43: 2024-05-17 | B43: Reports of litter in area | E43: Unknown source of litter
A44: 2024-05-24 | B44: Odour complaint | E44: Unsubstantiated
A45: 2024-05-31 | B45: Complaint of dust in area | E45: Unsubstantiated
A46: 2024-06-30 | B46: Odour complaint | E46: Unsubstantiated
A47: 2024-07-02 | B47: Odour complaint | E47: Unsubstantiated
A48: 2024-09-03 | B48: Odour complaint | E48: Unsubstantiated
A49: 2024-09-05 | B49: Odour complaint X 3 | E49: Unsubstantiated
A50: 2024-10-16 | B50: Complaint of noise | E50: Unsubstantiated
A51: 2024-10-21 | B51: Odour complaint X 3 | E51: Unsubstantiated
A52: 2024-10-23 | B52: Odour complaint | E52: Unsubstantiated
A53: 2024-12-17 | B53: Odour complaint | E53: Unsubstantiated

Sheet Improvements
A1: =+'Cover Page'!$B$29 -> Annual Performance Report 2024 | E1: =+'Cover Page'!$B$33 -> Runcorn Energy From Waste Facility
A3: Summary of Plant Improvements
A5: Summary of any efficiency improvements that have been completed within the year.
A6: MCR increase to Phase 2, post outage from 108% to 110%. Both Phases have had replacement blades for the cooling towers which has resulted in reduced power consumption.
A16: Summary of any permit improvement conditions that have been completed within the year and the resulting environmental benefits.
A17: NONE
A27: Summary of any changes to the plant or operating techniques which required a variation to the permit and a summary of the resulting environmental impact.
A28: NONE
A38: Summary of any other improvements made to the plant or planned to be made and a summary of the resulting environmental benefits.

Sheet Public Liasion
A1: =+'Cover Page'!$B$29 -> Annual Performance Report 2024 | E1: =+'Cover Page'!$B$33 -> Runcorn Energy From Waste Facility
A3: Details of Public & Stakeholder Liaison
A5: Summary of events held during the reporting year.
A6: Date | C6: Description
A7: 2024-01-15 | C7: Quarterly public liaison meeting
A9: 2024-04-15 | C9: Quarterly public liaison meeting
A11: 2024-07-15 | C11: Quarterly public liaison meeting
A13: 2024-10-11 | C13: Quarterly public liaison meeting
A16: List of events planned for next year
A17: Date | C17: Description
A18: 2025-01-27 | C18: Quarterly public liaison meeting
A20: 2025-04-07 | C20: Quarterly public liaison meeting
A22: 2025-07-28 | C22: Quarterly public liaison meeting
A24: 2025-10-20 | C24: Quarterly public liaison meeting
A29: If you wish to be involved in the public liaison programme, please contact _________________

Sheet CO2 N2O
A1: =+'Cover Page'!$B$29 -> Annual Performance Report 2024 | C1: =+'Cover Page'!$B$33 -> Runcorn Energy From Waste Facility
A3: Carbon dioxide emissions and biogenic content of waste inputs | F3: Notes:
A5: Carbon dioxide emissions (all types of plant)
B6: Annual mass of carbon dioxide released | C6: tonnes | D6: =281079+267182+261043+275652 -> 1084956
B7: Annual mass of carbon dioxide released per tonne of waste burned | C7: t CO2 / t waste | D7: =D6/'Operational Data'!G21 -> 1.094561533
B8: Annual mass of carbon dioxide released per MWh of energy exported | C8: t CO2 / MWh export | D8: =D6/'Operational Data'!G25 -> 1.779136251
B9: Description of how annual carbon dioxide mass emission has been calculated. See Note 1 | C9: CO2 CEMS installed on each line. Daily average concentrations and total flow used to calculate mass emissions | F9: Note 1: All permits require operators to continuously monitor CO2 to EN14181 and flow to BS EN 16911-2 (unless otherwise agreed in writing). Operators must therefore use the results from these instruments to calculate their annual CO2 emissions. Where an operator does not have a flow meter calibrated to BS EN 16911-2, the averaged flow measurement from that year's periodic monitoring can be used instead. If the plant does not have calibrated CO2 CEMS, a suitably justified emissions factor can be used.
A10: Nitrous oxide emissions (only plants which use ammonia or urea to abate NOx emissions)
B11: Annual mass emissions of nitrous oxide | C11: tonnes N2O | D11: =0.5668+0.126+1.067+1.875 -> 3.6348
B12: Description of how annual nitrous oxide mass emission has been calculated See Note 2 | C12: N2O CEMS installed on each line. Daily average concentrations and total flow used to calculate mass emissions | F12: Note 2: All permits require operators to continuously monitor N2O to EN14181 and flow to BS EN 16911-2, unless otherwise agreed in writing. Operators must therefore use the results from these instruments to calculate their annual N2O emissions. Where an operator does not have a flow meter calibrated to BS EN 16911-2, the averaged flow measurement from periodic monitoring can be used instead. If the plant does not have calibrated N2O CEMS, data from periodic monitoring or a suitably justified emissions factor can be used instead.
A13: Total annual carbon dioxide + nitrous oxide emissions. See Note 3. | C13: tonnes CO2e | D13: =(D11*265)+D6 -> 1085919.222 | F13: Note 3: Total annual carbon dioxide and nitrous oxide emissions reported as carbon dioxide equivalent where 1 tonne nitrous oxide is equivalent to 265 tonnes carbon dioxide.
A14: Biogenic CO2 emissions (See Note 4) | F14: Note 4: Only plants combusting residual municipal waste, refuse derived fuel or solid recovered fuel need complete this section.
B15: Percentage of total carbon dioxide emissions arising from biogenic waste | C15: % | D15: 0.499
B16: No. of measurements undertaken | C16: Number | D16: 18
B17: Description of how percentage biogenic carbon dioxide emissions have been measured or calculated. See Note 5 | C17: C14 Cartridges replaced every 4 weeks and sent for analysis. | F17: Note 5: The results from C14 sampling should be used if this is carried out at the plant (either via an installed sampler or from spot samples). Otherwise, as an approximation (and in lieu of any more accurate metrics which may be developed in future), the measured or estimated biogenic fraction by net calorific value (see Note 6) can be assumed to be the same as the biogenic CO2 fraction of the total CO2 emissions from the plant.
A18: Biogenic fraction of waste feedstock (See Note 4)
B19: Yearly average biogenic percentage of the waste by net calorific value (NCV) | C19: % | D19: 0.423
B20: Description of how biogenic percentage (by NCV) has been calculated or estimated. See Note 6 | C20: RDF sampling carried out annually for REGO accreditiation. Bogenic percentage calculated from net CV analysis. | F20: Note 6: If C14 sampling is carried out at the plant, the methodology set out in the embedded document entitled "Renewable Energy Association Energy Content of Fuels - Description of Method" embedded below can be used to calculate the biogenic percentage by net calorific value. Otherwise, data from waste sampling or BIOMA software can be used; or if none of these are available, an estimated figure with justification or a figure assumed on the basis of up-to-date industry data can be used.
B21: Yearly average biogenic percentage of the waste by mass | C21: %
B22: If waste sampling undertaken, no. of samples used to ascertain average biogenic percentages above | C22: Number | D22: 1
B23: Description of how biogenic percentage (by mass) has been calculated or estimated. See Note 7 | F23: Note 7: Where available, data from waste sampling should be used; otherwise, an estimated figure with justification can be used, or a figure assumed on the basis of up-to-date industry data.
B25: Comments:

Sheet Residue Quality
A1: =+'Cover Page'!$B$29 -> Annual Performance Report 2024 | E1: =+'Cover Page'!$B$33 -> Runcorn Energy From Waste Facility
A3: Residue Quality Monitoring Requirements
A5: Summary of monitoring undertaken and compliance
A6: 2 weekly sampling of IBA of each phase. Total 48 samples for year. No hazardous results as per ESA protocol.
A8: Quarterly sampling of APCr for each phase. Total of 8 samples for year.
A10: All residue analysis shows compliance with permit.
A13: Commentary on any specific events
A14: Date & Event | C14: Description
A27: Residue Quality Monitoring Results
A28: Parameter (unit) | C28: Limit* | D28: Normal Operation
D29: Bottom ash | F29: APC Residues
A30: Loss on Ignition (average %) | C30: <5%
A31: Total Organic Carbon (average %) | C31: <3% | D31: <1
A32: No. of Assessments Undertaken | C32: --- | D32: 48 | F32: 8
A33: No. of Hazardous Results | C33: --- | D33: 0
A34: * The permit will specify a limit of either 5% loss on ignition or 3% total organic carbon. If both are measured anyway, please enter the results here, even where the limit does not apply.
A36: Comments :
A37: All 2 weekly IBA remained non-hazardous as per the ESA protocol throughout 2024.

Sheet Water
A1: =+'Cover Page'!$B$29 -> Annual Performance Report 2024 | E1: =+'Cover Page'!$B$33 -> Runcorn Energy From Waste Facility
A3: Emissions to Water
A5: Summary of monitoring undertaken and compliance
A6: Weekly spot samples taken for emission point W1. No exceedances of permitted limits in 2024.
A13: Commentary on any specific events
A14: Date & Event | C14: Description
A22: Emissions to Water / Sewer
A23: Parameter | D23: Monitoring Frequency | F23: Limit | G23: Target | H23: Max. | I23: Average
A24: Suspended Solids | D24: Weekly, Spot (when flow present) | F24: 150 mg/l | G24: 100 mg/l | H24: 148 | I24: 23.3
A25: pH | D25: Weekly, Spot (when flow present) | F25: 4 - 11 | G25: 5 – 9 | H25: 10.1 | I25: 7.8
A26: Temperature | D26: Weekly, Spot (when flow present) | F26: 40 oC | H26: 36.9 | I26: 26.6
A27: Available Chlorine | D27: Weekly, Spot (when flow present) | F27: 20 mg/l | G27: 5 mg/l | H27: <1 | I27: <1
A28: Oil&grease | D28: Weekly, Spot (when flow present) | F28: None visible | G28: None visible | H28: None visible | I28: None visible

Sheet Air (periodic)
A1: =+'Cover Page'!$B$29 -> Annual Performance Report 2024 | E1: =+'Cover Page'!$B$33 -> Runcorn Energy From Waste Facility
A3: Emissions to Air (periodically monitored)
A5: Summary of monitoring undertaken, standards used and compliance | P5: Notes:
P6: Template may require adjustment for any bespoke monitoring requirements of permit - please also check that all default ELV values, reference periods and the stated oxygen reference value match those for your plant, and edit if necessary!
A9: Results of emissions to air that are periodically monitored - oxygen reference 11%
A10: Substance | C10: Ref. Period | D10: Emission Limit Value | F10: Biannual 1 | J10: Biannual 2 | P10: User to add additional tables as necessary, depending on whether quarterly or bi-annual reporting is required for the compliance year
F11: A1 | G11: A2 | H11: A3 | I11: A4 | J11: A1 | K11: A2 | L11: A3 | M11: A4
A12: Hydrogen fluoride | C12: 1 hr | D12: 1 mg/m3 | F12: 0.06 | G12: 0.05 | H12: 0.14 | I12: 0.07 | J12: 0.07 | K12: 0.14 | L12: 0.1 | M12: 0.12
A13: Cd and Tl and their compounds | C13: 0.5-8hrs | D13: 0.02 mg/m3 | F13: 0.0011 | G13: 0.0021 | H13: 0.0011 | I13: 0.0012 | J13: 0.001 | K13: 0.001 | L13: 0.001 | M13: 0.001
A14: Hg and its compounds | C14: 0.5-8hrs | D14: 0.02 mg/m3 | F14: 0.0072 | G14: 0.0012 | H14: 0.06 | I14: 0.0043 | J14: 0.008 | K14: 0.007 | L14: TBC | M14: 0.006
A15: Sb, As, Pb, Cr, Co, Cu, Mn, Ni, V and their compounds | C15: 0.5-8hrs | D15: 0.3 mg/m3 | F15: 0.044 | G15: 0.089 | H15: 0.009 | I15: 0.18 | J15: 0.02 | K15: 0.02 | L15: 0.01 | M15: 0.01
A16: Dioxins & Furans (I-TEQ) | C16: 6-8hrs | D16: 0.06 ng/m3 | F16: 0.0139 | G16: 0.0087 | H16: 0.009 | I16: 0.0077 | J16: 0.01 | K16: 0.003 | L16: 0.01 | M16: 0.02
A17: PCBs (WHO-TEQ Humans / Mammals) | C17: 6-8hrs | D17: None set ng/m3 | F17: 0.0017 | G17: 0.001 | H17: 0.001 | I17: 0.00086 | J17: 0.001 | K17: 0.0004 | L17: 0.001 | M17: 0.003
A18: PCBs (WHO-TEQ Fish) | C18: 6-8hrs | D18: None set ng/m3 | F18: 0.0001 | G18: 4.8e-05 | H18: 4.4e-05 | I18: 3.8e-05 | J18: 0.0001 | K18: 3e-05 | L18: 4e-05 | M18: 0.0001
A19: PCBs (WHO-TEQ Birds) | C19: 6-8hrs | D19: None set ng/m3 | F19: 0.0035 | G19: 0.0027 | H19: 0.002 | I19: 0.0017 | J19: 0.01 | K19: 0.002 | L19: 0.002 | M19: 0.005
A20: Dioxins & Furans (WHO-TEQ Humans / Mammals) | C20: 6-8hrs | D20: None set ng/m3 | F20: 0.0017 | G20: 0.001 | H20: 0.0073 | I20: 0.0064 | J20: 0.01 | K20: 0.0004 | L20: 0.005 | M20: 0.02
A21: Dioxins & Furans (WHO-TEQ Fish) | C21: 6-8hrs | D21: None set ng/m3 | F21: 0.0001 | G21: 0.0087 | H21: 0.0084 | I21: 0.0074 | J21: 0.01 | K21: 3e-05 | L21: 0.005 | M21: 0.02
A22: Dioxins & Furans (WHO-TEQ Birds) | C22: 6-8hrs | D22: None set ng/m3 | F22: 0.0035 | G22: 0.0152 | H22: 0.0163 | I22: 0.0141 | J22: 0.01 | K22: 0.002 | L22: 0.01 | M22: 0.03
A23: Anthanthrene | C23: 6-8hrs | D23: None set µg/m3 | F23: < 0.0017 | G23: < 0.0018 | H23: < 0.0015 | I23: < 0.0013
A24: Benzo(a)anthracene | C24: 6-8hrs | D24: None set µg/m3 | F24: 0 | G24: 0 | H24: 0 | I24: 0
A25: Benzo(a)pyrene | C25: 6-8hrs | D25: None set µg/m3 | F25: < 0.0017 | G25: < 0.0018 | H25: < 0.0015 | I25: 0
A26: Benzo(b)fluoranthene | C26: 6-8hrs | D26: None set µg/m3 | F26: < 0.0017 | G26: 0 | H26: 0 | I26: 0.01
A27: Benzo(b)naptho(2,1-d) thiophene | C27: 6-8hrs | D27: None set µg/m3 | F27: 0 | G27: 0 | H27: 0 | I27: 0
A28: Benzo(c)phenanthrene | C28: 6-8hrs | D28: None set µg/m3 | F28: 0 | G28: 0 | H28: < 0.0015 | I28: < 0.0013
A29: Benzo(ghi)perylene | C29: 6-8hrs | D29: None set µg/m3 | F29: 0 | G29: 0 | H29: < 0.0015 | I29: 0
A30: Benzo(k)fluoranthene | C30: 6-8hrs | D30: None set µg/m3 | F30: < 0.0017 | G30: 0 | H30: < 0.0015 | I30: 0
A31: Cholanthrene | C31: 6-8hrs | D31: None set µg/m3 | F31: < 0.0017 | G31: < 0.0018 | H31: < 0.0015 | I31: < 0.0013
A32: Chrysene | C32: 6-8hrs | D32: None set µg/m3 | F32: 0.01 | G32: 0.01 | H32: 0 | I32: 0.01
A33: Cyclopenta(cd)pyrene | C33: 6-8hrs | D33: None set µg/m3 | F33: < 0.0017 | G33: < 0.0018 | H33: < 0.0015 | I33: < 0.0013
A34: Dibenzo(ai)pyrene | C34: 6-8hrs | D34: None set µg/m3 | F34: < 0.0017 | G34: < 0.0018 | H34: < 0.0015 | I34: < 0.0013
A35: Dibenzo(ah)anthracene | C35: 6-8hrs | D35: None set µg/m3 | F35: < 0.0017 | G35: < 0.0018 | H35: < 0.0015 | I35: < 0.0013
A36: Fluoranthene | C36: 6-8hrs | D36: None set µg/m3 | F36: 0.11 | G36: 0.08 | H36: 0.05 | I36: 0.06
A37: Indeno(123-cd) pyrene | C37: 6-8hrs | D37: None set µg/m3 | F37: < 0.0017 | G37: < 0.0018 | H37: < 0.0015 | I37: 0
A38: Naphthalene | C38: 6-8hrs | D38: None set µg/m3 | F38: 0.15 | G38: 0.23 | H38: 0.34 | I38: 0.1
A39: Comments :

Sheet Air (CEMS)
A1: =+'Cover Page'!$B$29 -> Annual Performance Report 2024 | I1: =+'Cover Page'!$B$33 -> Runcorn Energy From Waste Facility
A3: Emissions to Air (continuously monitored)
N4: Notes:
A5: Summary of monitoring undertaken, standards used and compliance | N5: Template may require adjustment for any bespoke monitoring requirements of permit
N6: Please check that all default ELV values match those for your plant and edit if necessary!
N7: Report to 1 decimal place
A11: Results of emissions to air that are continuously monitored (maximum and average values for each line) - oxygen reference 11%
A12: Substance | B12: Reference Period | C12: Emission Limit Value | D12: A1 | F12: A2 | H12: A3 | J12: A4 | L12: A5
D13: Max. | E13: Avg. | F13: Max. | G13: Avg. | H13: Max. | I13: Avg. | J13: Max. | K13: Avg. | L13: Max. | M13: Avg.
A14: Oxides of nitrogen | B14: Daily mean | C14: 180 mg/m3 | D14: =NOx!O19 -> 170.070663 | E14: =NOx!N19 -> 164.8343227 | F14: =NOx!O34 -> 168.845276 | G14: =NOx!N34 -> 163.9912391 | H14: =NOx!O49 -> 181.4 | I14: =NOx!N49 -> 168.4291664 | J14: =NOx!O64 -> 177.118622 | K14: =NOx!N64 -> 170.1527914
B15: ½ hourly mean | C15: 400 mg/m3 | D15: =NOx!M19 -> 331.555145 | E15: =NOx!L19 -> 164.3990664 | F15: =NOx!M34 -> 276.070404 | G15: =NOx!L34 -> 163.000451 | H15: =NOx!M49 -> 289.4 | I15: =NOx!L49 -> 168.0725011 | J15: =NOx!M64 -> 300.746429 | K15: =NOx!L64 -> 169.8975112
A16: Particulates | B16: Daily mean | C16: 5 mg/m3 | D16: =Particulates!O19 -> 1.660582 | E16: =Particulates!N19 -> 0.5680525774 | F16: =Particulates!O34 -> 603.97 | G16: =Particulates!N34 -> 3.23283897 | H16: =Particulates!O49 -> 2.37 | I16: =Particulates!N49 -> 0.6229668866 | J16: =Particulates!O64 -> 3.018158 | K16: =Particulates!N64 -> 0.6545614287
B17: ½ hourly mean | C17: 30 mg/m3 | D17: =Particulates!M19 -> 11.2 | E17: =Particulates!L19 -> 0.5777779793 | F17: =Particulates!M34 -> 28952.95 | G17: =Particulates!L34 -> 3.179271814 | H17: =Particulates!M49 -> 10.07 | I17: =Particulates!L49 -> 0.6318925474 | J17: =Particulates!M64 -> 11.168981 | K17: =Particulates!L64 -> 0.6551079197 | N17: *Moisture analyser giving untrue muliplyer to low dust reading. Believed to be a false reading
A18: Total Organic Carbon | B18: Daily mean | C18: 10 mg/m3 | D18: =TOC!O19 -> 1.337704 | E18: =TOC!N19 -> 0.02225199545 | F18: =TOC!O34 -> 0.46 | G18: =TOC!N34 -> 0.03150355129 | H18: =TOC!O49 -> 4.181934 | I18: =TOC!N49 -> 0.06436881459 | J18: =TOC!O64 -> 0.83 | K18: =TOC!N64 -> 0.2841580802
B19: ½ hourly mean | C19: 20 mg/m3 | D19: =TOC!M19 -> 62.441113 | E19: =TOC!L19 -> 0.02425369368 | F19: =TOC!M34 -> 13.42 | G19: =TOC!L34 -> 0.03303795937 | H19: =TOC!M49 -> 39.575066 | I19: =TOC!L49 -> 0.07139700202 | J19: =TOC!M64 -> 11.047766 | K19: =TOC!L64 -> 0.2827098408
A20: Hydrogen chloride | B20: Daily mean | C20: 8 mg/m3 | D20: =HCl!O19 -> 7.326759 | E20: =HCl!N19 -> 4.413723938 | F20: =HCl!O34 -> 5.857976 | G20: =HCl!N34 -> 2.971201077 | H20: =HCl!O49 -> 6.076423 | I20: =HCl!N49 -> 2.299575301 | J20: =HCl!O64 -> 6.065207 | K20: =HCl!N64 -> 1.204042257
B21: ½ hourly mean | C21: 60 mg/m3 | D21: =HCl!M19 -> 47.812973 | E21: =HCl!L19 -> 4.211675187 | F21: =HCl!M34 -> 107.65625 | G21: =HCl!L34 -> 2.940338841 | H21: =HCl!M49 -> 49.77 | I21: =HCl!L49 -> 2.303549055 | J21: =HCl!M64 -> 38.780548 | K21: =HCl!L64 -> 1.19989511
A22: Sulphur dioxide | B22: Daily mean | C22: 40 mg/m3 | D22: ='SO2'!O19 -> 35.253727 | E22: ='SO2'!N19 -> 23.3864358 | F22: ='SO2'!O34 -> 28.491812 | G22: ='SO2'!N34 -> 10.92881092 | H22: ='SO2'!O49 -> 36.010834 | I22: ='SO2'!N49 -> 19.83992422 | J22: ='SO2'!O64 -> 33.12 | K22: ='SO2'!N64 -> 23.56126473
B23: ½ hourly mean | C23: 200 mg/m3 | D23: ='SO2'!M19 -> 201.487381 | E23: ='SO2'!L19 -> 22.84368139 | F23: ='SO2'!M34 -> 168.058456 | G23: ='SO2'!L34 -> 10.83199839 | H23: ='SO2'!M49 -> 236.88 | I23: ='SO2'!L49 -> 20.88909732 | J23: ='SO2'!M64 -> 148.826828 | K23: ='SO2'!L64 -> 21.80642949
A24: Carbon monoxide | B24: Daily mean | C24: 50 mg/m3 | D24: ='CO 95% 10 min'!Q22 -> 71.192284 | E24: ='CO 95% 10 min'!P22 -> 3.35165991 | F24: ='CO 95% 10 min'!Q37 -> 60.54 | G24: ='CO 95% 10 min'!P37 -> 1.071361939 | H24: ='CO 95% 10 min'!Q52 -> 57.113258 | I24: ='CO 95% 10 min'!P52 -> 3.129000949 | J24: ='CO 95% 10 min'!Q67 -> 71.517433 | K24: ='CO 95% 10 min'!P67 -> 3.039919479
B25: 95%ile 10-min avg * | C25: 150 mg/m3 * | D25: ='CO 95% 10 min'!M22 -> 1329.95 | E25: ='CO 95% 10 min'!N22 -> 8.419584363 | F25: ='CO 95% 10 min'!M37 -> 475.29 | G25: ='CO 95% 10 min'!N37 -> 5.465289306 | H25: ='CO 95% 10 min'!M52 -> 1597.045471 | I25: ='CO 95% 10 min'!N52 -> 5.171473996 | J25: ='CO 95% 10 min'!M67 -> 1114.13 | K25: ='CO 95% 10 min'!N67 -> 5.826198109
A26: Ammonia | B26: Daily mean | C26: 15 mg/m3 | D26: ='NH3'!O19 -> 2.095025 | E26: ='NH3'!N19 -> 0.1387909287 | F26: ='NH3'!O34 -> 2.287526 | G26: ='NH3'!N34 -> 0.2718727433 | H26: ='NH3'!O49 -> 1.01 | I26: ='NH3'!N49 -> 0.3544507865 | J26: ='NH3'!O64 -> 1.857668 | K26: ='NH3'!N64 -> 0.1446071401
A28: Comments :

Sheet HCl
A1: =+'Cover Page'!$B$29 -> Annual Performance Report 2024 | E1: =+'Cover Page'!$B$33 -> Runcorn Energy From Waste Facility
A3: Monitoring of Hydrogen Chloride emissions | D3: Whole Installation | G3: See Notes in Cell Q3 | J3: =+A3 -> Monitoring of Hydrogen Chloride emissions | N3: Per Combustion Line | Q3: Notes:
Q4: User to add logic to complete Whole installation, Table A5:G18. From the data in Per Combustion Line, Table J6:O79, subject to No. of lines installed
A5: =+'Cover Page'!C39 -> 2024 | B5: 1/2 Hourly Reference Periods | E5: Daily Reference Periods
A6: mg/Nm3 | B6: 1/2 hourly HCl ELV | C6: Monthly mean of half-hourly averages | D6: Highest half- hourly average | E6: Daily HCl ELV | F6: Monthly mean of daily averages | G6: Highest daily average | J6: =+A5 -> 2024 | K6: mg/Nm3 | L6: Monthly mean of half-hourly averages | M6: Highest half- hourly average | N6: Monthly mean of daily averages | O6: Highest daily average
A7: Jan | B7: 60 | C7: =AVERAGE(L7,L22,L37,L52) -> 3.23869848 | D7: =MAX(M7,M22,M37,M52) -> 38.780548 | E7: 8 | F7: =AVERAGE(N7,N22,N37,N52) -> 3.255017139 | G7: =MAX(O7,O22,O37,O52) -> 6.065207 | J7: A1 | K7: Jan | L7: 4.722757477 | M7: 14.098693 | N7: 4.722757421 | O7: 5.54985
A8: Feb | B8: 60 | C8: 3.493839248 | D8: 47.812973 | E8: 8 | F8: =AVERAGE(N8,N23,N38,N53) -> 3.486315369 | G8: =MAX(O8,O23,O38,O53) -> 7.326759 | K8: Feb | L8: 5.033182162 | M8: 47.812973 | N8: 5.033691893 | O8: 7.326759
A9: Mar | B9: 60 | C9: 2.52003531 | D9: 17.340448 | E9: 8 | F9: =AVERAGE(N9,N24,N39,N54) -> 2.514716224 | G9: 5.785316 | K9: Mar | L9: 2.851585998 | M9: 17.340448 | N9: 2.82494544 | O9: 5.785316 | Q9: Whole Installation table A5:G18:
A10: Apr | B10: 60 | C10: 2.466992055 | D10: 13.86907 | E10: 8 | F10: =AVERAGE(N10,N25,N40,N55) -> 2.464110798 | G10: 5.723315 | K10: Apr | L10: 4.676122851 | M10: 9.038817 | N10: 4.639615222 | O10: 5.723315 | Q10: Mean: for 1/2 hourly and daily periods calculate mean of values across all operational combustion lines for the month
A11: May | B11: 60 | C11: 3.365054113 | D11: 22.163263 | E11: 8 | F11: 3.393339016 | G11: 5.695001 | K11: May | L11: 5.473122012 | M11: 22.163263 | N11: 5.473122069 | O11: 5.695001
A12: Jun | B12: 60 | C12: 2.68828794 | D12: 107.65625 | E12: 8 | F12: 2.685865842 | G12: 6.045749 | K12: Jun | L12: 5.273650905 | M12: 16.217075 | N12: 5.273650967 | O12: 5.722871
A13: Jul | B13: 60 | C13: 2.143210698 | D13: 13.259036 | E13: 8 | F13: 2.151767242 | G13: 5.645894 | K13: Jul | L13: 3.98319768 | M13: 10.369451 | N13: 4.002828 | O13: 5.350154 | Q13: Maximum: for 1/2 hourly and daily periods use the highest value across all operational combustion lines for the month
A14: Aug | B14: 60 | C14: 2.594157137 | D14: 11.190976 | E14: 8 | F14: 3.192216583 | G14: 6.076423 | K14: Aug | L14: 3.177437269 | M14: 9.01593 | N14: 5.489654 | O14: 3.17601572
A15: Sep | B15: 60 | C15: 3.906099599 | D15: 15.316 | E15: 8 | F15: 3.952279512 | G15: 5.968781 | K15: Sep | L15: 4.629045889 | M15: 15.316 | N15: 4.61442225 | O15: 5.968781
A16: Oct | B16: 60 | C16: =AVERAGE(L16,L31,L46,L61) -> 2.425 | D16: =MAX(M16,M31,M46,M61) -> 16.52 | E16: 8 | F16: =AVERAGE(N16,N31,N46,N61) -> 2.41 | G16: =MAX(O16,O31,O46,O61) -> 5.56 | K16: Oct | L16: 4.91 | M16: 15.83 | N16: 4.9 | O16: 5.54
A17: Nov | B17: 60 | C17: 2.1625 | D17: 49.77 | E17: 8 | F17: =AVERAGE(N17,N32,N47,N62) -> 2.185 | G17: =MAX(O17,O32,O47,O62) -> 6.04 | K17: Nov | L17: 4.55 | M17: 32.28 | N17: 4.66 | O17: 6.04
A18: Dec | B18: 60 | C18: 0.9625 | D18: 19.53 | E18: 8 | F18: =AVERAGE(N18,N33,N48,N63) -> 0.975 | G18: 5.66 | K18: Dec | L18: 1.26 | M18: 10.6 | N18: 1.33 | O18: 5.48
K19: Annual | L19: =AVERAGE(L7:L18) -> 4.211675187 | M19: =MAX(M7:M18) -> 47.812973 | N19: =AVERAGE(N7:N18) -> 4.413723938 | O19: =MAX(O7:O18) -> 7.326759
J21: =+A5 -> 2024 | K21: mg/Nm3 | L21: Monthly mean of half-hourly averages | M21: Highest half- hourly average | N21: Monthly mean of daily averages | O21: Highest daily average
J22: A2 | K22: Jan | L22: 4.648810333 | M22: 18.872175 | N22: 4.676561261 | O22: 5.78203
K23: Feb | L23: 5.280922185 | M23: 15.238222 | N23: 5.280922148 | O23: 5.857976
K24: Mar | L24: 4.554206918 | M24: 14.207476 | N24: 4.552625071 | O24: 5.772115
K25: Apr | L25: 2.243174404 | M25: 11.477417 | N25: 2.253547312 | O25: 4.195153
K26: May | L26: 2.632719758 | M26: 8.762683 | N26: 2.63931764 | O26: 5.572731
K27: Jun | L27: 1.260841894 | M27: 107.65625 | N27: 1.2564383 | O27: 5.201934
K28: Jul | L28: 0.9482552634 | M28: 13.259036 | N28: 0.9525312258 | O28: 5.075775
K29: Aug | L29: 3.150471733 | M29: 11.190976 | N29: 3.15170925 | O29: 5.802551
K30: Sep | L30: 5.354663606 | M30: 11.074679 | N30: 5.54076072 | O30: 5.822124
K31: Oct | L31: 2.22 | M31: 12.42 | N31: 2.31 | O31: 5.56
K32: Nov | L32: 1.36 | M32: 10.36 | N32: 1.41 | O32: 3.41
K33: Dec | L33: 1.63 | M33: 19.53 | N33: 1.63 | O33: 5.66
K34: Annual | L34: =AVERAGE(L22:L33) -> 2.940338841 | M34: =MAX(M22:M33) -> 107.65625 | N34: =AVERAGE(N22:N33) -> 2.971201077 | O34: =MAX(O22:O33) -> 5.857976
J36: =+A5 -> 2024 | K36: mg/Nm3 | L36: Monthly mean of half-hourly averages | M36: Highest half- hourly average | N36: Monthly mean of daily averages | O36: Highest daily average
J37: A3 | K37: Jan | L37: 2.249364528 | M37: 20.907124 | N37: 2.249364613 | O37: 4.636362
K38: Feb | L38: 1.983684999 | M38: 8.222594 | N38: 1.983188793 | O38: 5.855958
K39: Mar | L39: 1.047377107 | M39: 6.37542 | N39: 1.054266765 | O39: 2.159116
K40: Apr | L40: 1.736522098 | M40: 8.249379 | N40: 1.736522056 | O40: 4.823378
K41: May | L41: 2.275299953 | M41: 8.358742 | N41: 2.284521833 | O41: 5.448366
K42: Jun | L42: 2.309862053 | M42: 8.021124 | N42: 2.309862067 | O42: 6.045749
K43: Jul | L43: 2.86089396 | M43: 9.241303 | N43: 2.861154 | O43: 5.645894
K44: Aug | L44: 3.734206853 | M44: 11.022878 | N44: 3.816417296 | O44: 6.076423
K45: Sep | L45: 4.295377111 | M45: 9.444092 | N45: 4.289606187 | O45: 5.855763
K46: Oct | L46: 2.34 | M46: 16.52 | N46: 2.31 | O46: 5.52
K47: Nov | L47: 2.13 | M47: 49.77 | N47: 2.04 | O47: 5.48
A48: Comments : | K48: Dec | L48: 0.68 | M48: 2.12 | N48: 0.66 | O48: 0.81
K49: Annual | L49: =AVERAGE(L37:L48) -> 2.303549055 | M49: =MAX(M37:M48) -> 49.77 | N49: =AVERAGE(N37:N48) -> 2.299575301 | O49: =MAX(O37:O48) -> 6.076423
J51: =+A5 -> 2024 | K51: mg/Nm3 | L51: Monthly mean of half-hourly averages | M51: Highest half- hourly average | N51: Monthly mean of daily averages | O51: Highest daily average
J52: A4 | K52: Jan | L52: 1.333861584 | M52: 38.780548 | N52: 1.371385259 | O52: 6.065207
K53: Feb | L53: 1.677567645 | M53: 10.215825 | N53: 1.64745864 | O53: 5.89658
K54: Mar | L54: 1.626971217 | M54: 9.796135 | N54: 1.627027619 | O54: 5.519938
K55: Apr | L55: 1.212148867 | M55: 13.86907 | N55: 1.2267586 | O55: 4.462502
K56: May | L56: 3.079074728 | M56: 10.539604 | N56: 3.17639452 | O56: 5.604365
K57: Jun | L57: 1.90879691 | M57: 7.972637 | N57: 1.903512033 | O57: 5.147102
K58: Jul | L58: 0.7804958869 | M58: 7.194182 | N58: 0.7905557407 | O58: 5.145354
K59: Aug | L59: 0.314512694 | M59: 7.122293 | N59: 0.3110857857 | O59: 2.630872
K60: Sep | L60: 1.34531179 | M60: 7.795229 | N60: 1.364328889 | O60: 4.513551
K61: Oct | L61: 0.23 | M61: 3.01 | N61: 0.12 | O61: 0.43
K62: Nov | L62: 0.61 | M62: 7.74 | N62: 0.63 | O62: 3.14
K63: Dec | L63: 0.28 | M63: 4.97 | N63: 0.28 | O63: 1.25
K64: Annual | L64: =AVERAGE(L52:L63) -> 1.19989511 | M64: =MAX(M52:M63) -> 38.780548 | N64: =AVERAGE(N52:N63) -> 1.204042257 | O64: =MAX(O52:O63) -> 6.065207
J66: =+A5 -> 2024 | K66: mg/Nm3 | L66: Monthly mean of half-hourly averages | M66: Highest half- hourly average | N66: Monthly mean of daily averages | O66: Highest daily average
J67: A5 | K67: Jan
K68: Feb
K69: Mar
K70: Apr
K71: May
K72: Jun
K73: Jul
K74: Aug
K75: Sep
K76: Oct
K77: Nov
K78: Dec
K79: Annual | L79: =AVERAGE(L67:L78) ->  | M79: =MAX(M67:M78) -> 0 | N79: =AVERAGE(N67:N78) ->  | O79: =MAX(O67:O78) -> 0

Sheet SO2
A1: =+'Cover Page'!$B$29 -> Annual Performance Report 2024 | E1: =+'Cover Page'!$B$33 -> Runcorn Energy From Waste Facility
A3: Monitoring of Sulphur dioxide emissions | D3: Whole Installation | G3: See Notes in Cell Q3 | J3: =+A3 -> Monitoring of Sulphur dioxide emissions | N3: Per Combustion Line | Q3: Notes:
Q4: User to add logic to complete Whole installation, Table A5:G18. From the data in Per Combustion Line, Table J6:O79, subject to No. of lines installed
A5: =+'Cover Page'!C39 -> 2024 | B5: 1/2 Hourly Reference Periods | E5: Daily Reference Periods
A6: mg/Nm3 | B6: 1/2 hourly SO2 ELV | C6: Monthly mean of half-hourly averages | D6: Highest half- hourly average | E6: Daily SO2 ELV | F6: Monthly mean of daily averages | G6: Highest daily average | J6: =+A5 -> 2024 | K6: mg/Nm3 | L6: Monthly mean of half-hourly averages | M6: Highest half- hourly average | N6: Monthly mean of daily averages | O6: Highest daily average
A7: Jan | B7: 200 | C7: =AVERAGE(L7,L22,L37,L52) -> 18.28358904 | D7: =MAX(M7,M22,M37,M52) -> 136.298828 | E7: 40 | F7: =AVERAGE(N7,N22,N37,N52) -> 18.349751 | G7: =MAX(O7,O22,O37,O52) -> 34.988655 | J7: A1 | K7: Jan | L7: 20.99220855 | M7: 119.971611 | N7: 20.99220858 | O7: 29.511078
A8: Feb | B8: 200 | C8: =AVERAGE(L8,L23,L38,L53) -> 22.51546676 | D8: =MAX(M8,M23,M38,M53) -> 168.177109 | E8: 40 | F8: =AVERAGE(N8,N23,N38,N53) -> 22.50233841 | G8: =MAX(O8,O23,O38,O53) -> 36.010834 | K8: Feb | L8: 22.06607563 | M8: 168.177109 | N8: 22.0601165 | O8: 33.337593
A9: Mar | B9: 200 | C9: =AVERAGE(L9,L24,L39,L54) -> 23.89832165 | D9: =MAX(M9,M24,M39,M54) -> 148.826828 | E9: 40 | F9: =AVERAGE(N9,N24,N39,N54) -> 23.95407767 | G9: 35.253727 | K9: Mar | L9: 28.72161673 | M9: 135.02153 | N9: 28.76382148 | O9: 35.253727 | Q9: Whole Installation table A5:G18:
A10: Apr | B10: 200 | C10: 19.41245013 | D10: 123.831581 | E10: 40 | F10: =AVERAGE(N10,N25,N40,N55) -> 19.50704898 | G10: 30.632101 | K10: Apr | L10: 23.75202472 | M10: 123.831581 | N10: 24.06140828 | O10: 30.632101 | Q10: Mean: for 1/2 hourly and daily periods calculate mean of values across all operational combustion lines for the month
A11: May | B11: 200 | C11: 14.81279422 | D11: 201.487381 | E11: 40 | F11: 14.75791415 | G11: 26.682735 | K11: May | L11: 18.4309917 | M11: 201.487381 | N11: 18.43099179 | O11: 23.188057
A12: Jun | B12: 200 | C12: 17.32325216 | D12: 110.431129 | E12: 40 | F12: 17.30940909 | G12: 32.694572 | K12: Jun | L12: 19.00744543 | M12: 103.973656 | N12: 19.00744543 | O12: 27.244669
A13: Jul | B13: 200 | C13: 18.97273134 | D13: 58.683472 | E13: 40 | F13: 21.32603862 | G13: 29.15526 | K13: Jul | L13: 28.41964573 | M13: 58.683472 | N13: 33.234261 | O13: 29.0472014 | Q13: Maximum: for 1/2 hourly and daily periods use the highest value across all operational combustion lines for the month
A14: Aug | B14: 200 | C14: 23.12030912 | D14: 148.328308 | E14: 40 | F14: 22.33143446 | G14: 34.836521 | K14: Aug | L14: 28.77393429 | M14: 123.624161 | N14: 28.7760062 | O14: 34.836521
A15: Sep | B15: 200 | C15: 18.65470535 | D15: 80.115807 | E15: 40 | F15: 20.13629463 | G15: 27.769644 | K15: Sep | L15: 18.82023384 | M15: 45.888668 | N15: 18.81097029 | O15: 27.769644
A16: Oct | B16: 200 | C16: =AVERAGE(L16,L31,L46,L61) -> 18.2425 | D16: =MAX(M16,M31,M46,M61) -> 119 | E16: 40 | F16: =AVERAGE(N16,N31,N46,N61) -> 18.8825 | G16: =MAX(O16,O31,O46,O61) -> 33.12 | K16: Oct | L16: 21.83 | M16: 44.59 | N16: 22.01 | O16: 27.74
A17: Nov | B17: 200 | C17: =AVERAGE(L17,L32,L47,L62) -> 20.4075 | D17: =MAX(M17,M32,M47,M62) -> 236.88 | E17: 40 | F17: =AVERAGE(N17,N32,N47,N62) -> 20.6575 | G17: =MAX(O17,O32,O47,O62) -> 33.04 | K17: Nov | L17: 27.93 | M17: 52.15 | N17: 28.54 | O17: 30.96
A18: Dec | B18: 200 | C18: =AVERAGE(L18,L33,L48,L63) -> 13.47 | D18: =MAX(M18,M33,M48,M63) -> 103.98 | E18: 40 | F18: =AVERAGE(N18,N33,N48,N63) -> 13.435 | G18: 28.71 | K18: Dec | L18: 15.38 | M18: 55.08 | N18: 15.95 | O18: 27.66
K19: Annual | L19: =AVERAGE(L7:L18) -> 22.84368139 | M19: =MAX(M7:M18) -> 201.487381 | N19: =AVERAGE(N7:N18) -> 23.3864358 | O19: =MAX(O7:O18) -> 35.253727
J21: =+A5 -> 2024 | K21: mg/Nm3 | L21: Monthly mean of half-hourly averages | M21: Highest half- hourly average | N21: Monthly mean of daily averages | O21: Highest daily average
J22: A2 | K22: Jan | L22: 9.795268138 | M22: 136.298828 | N22: 9.895688957 | O22: 17.004717
K23: Feb | L23: 16.26967524 | M23: 168.058456 | N23: 16.26967537 | O23: 26.514765
K24: Mar | L24: 17.11846061 | M24: 142.923782 | N24: 17.11846061 | O24: 26.072506
K25: Apr | L25: 10.6051016 | M25: 62.244408 | N25: 10.6132185 | O25: 16.839678
K26: May | L26: 4.698971201 | M26: 33.537434 | N26: 4.76919628 | O26: 10.186143
K27: Jun | L27: 4.778051535 | M27: 92.759628 | N27: 4.7646491 | O27: 9.613915
K28: Jul | L28: 5.618821307 | M28: 39.961308 | N28: 5.625936903 | O28: 11.690927
K29: Aug | L29: 17.22795923 | M29: 84.813362 | N29: 17.18254162 | O29: 28.491812
K30: Sep | L30: 14.01167183 | M30: 51.009762 | N30: 14.38636368 | O30: 21.066338
K31: Oct | L31: 10.18 | M31: 119 | N31: 10.62 | O31: 19.14
K32: Nov | L32: 10.65 | M32: 41.07 | N32: 10.87 | O32: 18.4
K33: Dec | L33: 9.03 | M33: 103.98 | N33: 9.03 | O33: 17
K34: Annual | L34: =AVERAGE(L22:L33) -> 10.83199839 | M34: =MAX(M22:M33) -> 168.058456 | N34: =AVERAGE(N22:N33) -> 10.92881092 | O34: =MAX(O22:O33) -> 28.491812
J36: =+A5 -> 2024 | K36: mg/Nm3 | L36: Monthly mean of half-hourly averages | M36: Highest half- hourly average | N36: Monthly mean of daily averages | O36: Highest daily average
J37: A3 | K37: Jan | L37: 24.70662385 | M37: 114.743843 | N37: 24.70662394 | O37: 34.988655
K38: Feb | L38: 28.99835438 | M38: 131.50946 | N38: 29.001827 | O38: 36.010834
K39: Mar | L39: 30.22108522 | M39: 107.355087 | N39: 30.41334135 | O39: 34.328396
K40: Apr | L40: 22.39607664 | M40: 44.268631 | N40: 22.39607656 | O40: 30.363997
K41: May | L41: 19.81410893 | M41: 40.760468 | N41: 19.57188583 | O41: 26.682735
K42: Jun | L42: 23.21590176 | M42: 110.431129 | N42: 23.21590183 | O42: 32.694572
K43: Jul | L43: 20.72585144 | M43: 53.255245 | N43: 20.72036757 | O43: 29.15526
K44: Aug | L44: 22.74678764 | M44: 101.750381 | N44: 10.868327 | O44: 31.674475
K45: Sep | L45: 18.04437801 | M45: 46.842358 | N45: 18.02473956 | O45: 24.255091
K46: Oct | L46: 13.57 | M46: 50.5 | N46: 13.61 | O46: 27.73
K47: Nov | L47: 17.88 | M47: 236.88 | N47: 17.95 | O47: 30.35
A48: Comments : | K48: Dec | L48: 8.35 | M48: 46.16 | N48: 7.6 | O48: 14.81
K49: Annual | L49: =AVERAGE(L37:L48) -> 20.88909732 | M49: =MAX(M37:M48) -> 236.88 | N49: =AVERAGE(N37:N48) -> 19.83992422 | O49: =MAX(O37:O48) -> 36.010834
J51: =+A5 -> 2024 | K51: mg/Nm3 | L51: Monthly mean of half-hourly averages | M51: Highest half- hourly average | N51: Monthly mean of daily averages | O51: Highest daily average
J52: A4 | K52: Jan | L52: 17.64025562 | M52: 130.225479 | N52: 17.80448252 | O52: 32.695724
K53: Feb | L53: 22.7277618 | M53: 143.932465 | N53: 22.67773476 | O53: 31.812885
K54: Mar | L54: 19.53212402 | M54: 148.826828 | N54: 19.52068724 | O54: 30.641699
K55: Apr | L55: 20.89659757 | M55: 49.955856 | N55: 20.9574926 | O55: 27.830549
K56: May | L56: 16.30710507 | M56: 52.103176 | N56: 16.25958268 | O56: 23.859213
K57: Jun | L57: 22.29160991 | M57: 63.871922 | N57: 22.24964 | O57: 29.139675
K58: Jul | L58: 21.12660687 | M58: 50.383255 | N58: 25.723589 | O58: 21.23114978
K59: Aug | L59: 23.73255531 | M59: 148.328308 | N59: 32.498863 | O59: 23.72928557
K60: Sep | L60: 23.74253775 | M60: 80.115807 | N60: 29.323105 | O60: 23.65363472
K61: Oct | L61: 27.39 | M61: 54.83 | N61: 29.29 | O61: 33.12
K62: Nov | L62: 25.17 | M62: 98.17 | N62: 25.27 | O62: 33.04
K63: Dec | L63: 21.12 | M63: 51.25 | N63: 21.16 | O63: 28.71
K64: Annual | L64: =AVERAGE(L52:L63) -> 21.80642949 | M64: =MAX(M52:M63) -> 148.826828 | N64: =AVERAGE(N52:N63) -> 23.56126473 | O64: =MAX(O52:O63) -> 33.12
J66: =+A5 -> 2024 | K66: mg/Nm3 | L66: Monthly mean of half-hourly averages | M66: Highest half- hourly average | N66: Monthly mean of daily averages | O66: Highest daily average
J67: A5 | K67: Jan
K68: Feb
K69: Mar
K70: Apr
K71: May
K72: Jun
K73: Jul
K74: Aug
K75: Sep
K76: Oct
K77: Nov
K78: Dec
K79: Annual | L79: =AVERAGE(L67:L78) ->  | M79: =MAX(M67:M78) -> 0 | N79: =AVERAGE(N67:N78) ->  | O79: =MAX(O67:O78) -> 0

Sheet NOx
A1: =+'Cover Page'!$B$29 -> Annual Performance Report 2024 | E1: =+'Cover Page'!$B$33 -> Runcorn Energy From Waste Facility
A3: Monitoring of Oxides of Nitrogen emissions | D3: Whole Installation | G3: See Notes in Cell Q3 | J3: =+A3 -> Monitoring of Oxides of Nitrogen emissions | N3: Per Combustion Line | Q3: Notes:
Q4: User to add logic to complete Whole installation, Table A5:G18. From the data in Per Combustion Line, Table J6:O79, subject to No. of lines installed
A5: =+'Cover Page'!C39 -> 2024 | B5: 1/2 Hourly Reference Periods | E5: Daily Reference Periods
A6: mg/Nm3 | B6: 1/2 hourly NOx ELV | C6: Monthly mean of half-hourly averages | D6: Highest half- hourly average | E6: Daily NOx ELV | F6: Monthly mean of daily averages | G6: Highest daily average | J6: =+A5 -> 2024 | K6: mg/Nm3 | L6: Monthly mean of half-hourly averages | M6: Highest half- hourly average | N6: Monthly mean of daily averages | O6: Highest daily average
A7: Jan | B7: 400 | C7: =AVERAGE(L7,L22,L37,L52) -> 168.0520131 | D7: =MAX(M7,M22,M37,M52) -> 300.324341 | E7: 180 | F7: =AVERAGE(N7,N22,N37,N52) -> 168.1079372 | G7: =MAX(O7,O22,O37,O52) -> 174.805115 | J7: A1 | K7: Jan | L7: 164.7593146 | M7: 300.324341 | N7: 164.7593143 | O7: 170.070663
A8: Feb | B8: 400 | C8: =AVERAGE(L8,L23,L38,L53) -> 166.1084782 | D8: =MAX(M8,M23,M38,M53) -> 267.415161 | E8: 180 | F8: =AVERAGE(N8,N23,N38,N53) -> 166.1133141 | G8: =MAX(O8,O23,O38,O53) -> 174.738174 | K8: Feb | L8: 165.1377463 | M8: 210.601547 | N8: 165.1357792 | O8: 167.074356
A9: Mar | B9: 400 | C9: =AVERAGE(L9,L24,L39,L54) -> 167.9474807 | D9: =MAX(M9,M24,M39,M54) -> 331.555145 | E9: 180 | F9: =AVERAGE(N9,N24,N39,N54) -> 167.9741546 | G9: 181.4 | K9: Mar | L9: 164.9143175 | M9: 331.555145 | N9: 165.0095312 | O9: 169.942322 | Q9: Whole Installation table A5:G18:
A10: Apr | B10: 400 | C10: 165.0986174 | D10: 300.746429 | E10: 180 | F10: =AVERAGE(N10,N25,N40,N55) -> 165.1488095 | G10: 177.118622 | K10: Apr | L10: 162.4987097 | M10: 177.979233 | N10: 162.6029407 | O10: 165.208221 | Q10: Mean: for 1/2 hourly and daily periods calculate mean of values across all operational combustion lines for the month
A11: May | B11: 400 | C11: 167.5654 | D11: 292.723297 | E11: 180 | F11: 167.7413361 | G11: 173.843582 | K11: May | L11: 165.1325781 | M11: 189.72612 | N11: 165.1325794 | O11: 165.518005
A12: Jun | B12: 400 | C12: 167.1977309 | D12: 279.856476 | E12: 180 | F12: 167.1988417 | G12: 174.24231 | K12: Jun | L12: 163.9051648 | M12: 176.047745 | N12: 163.9051651 | O12: 165.753906
A13: Jul | B13: 400 | C13: 165.970839 | D13: 293.36203 | E13: 180 | F13: 166.5163518 | G13: 174.961426 | K13: Jul | L13: 164.7209672 | M13: 245.095795 | N13: 164.8918146 | O13: 167.700317 | Q13: Maximum: for 1/2 hourly and daily periods use the highest value across all operational combustion lines for the month
A14: Aug | B14: 400 | C14: 167.0128699 | D14: 242.822998 | E14: 180 | F14: 167.7380895 | G14: 175.973343 | K14: Aug | L14: 164.769157 | M14: 196.264847 | N14: 165.342545 | O14: 164.769328
A15: Sep | B15: 400 | C15: 167.3576598 | D15: 268.827545 | E15: 180 | F15: 169.7662242 | G15: 173.306503 | K15: Sep | L15: 164.3508413 | M15: 256.840759 | N15: 166.992203 | O15: 164.3798992
A16: Oct | B16: 400 | C16: =AVERAGE(L16,L31,L46,L61) -> 161.3975 | D16: =MAX(M16,M31,M46,M61) -> 227.53 | E16: 180 | F16: =AVERAGE(N16,N31,N46,N61) -> 162.4975 | G16: =MAX(O16,O31,O46,O61) -> 172.79 | K16: Oct | L16: 164.98 | M16: 202.11 | N16: 165.01 | O16: 166
A17: Nov | B17: 400 | C17: =AVERAGE(L17,L32,L47,L62) -> 165.63 | D17: =MAX(M17,M32,M47,M62) -> 239.86 | E17: 180 | F17: =AVERAGE(N17,N32,N47,N62) -> 166.1875 | G17: =MAX(O17,O32,O47,O62) -> 172.38 | K17: Nov | L17: 163.55 | M17: 190.22 | N17: 164.71 | O17: 165.16
A18: Dec | B18: 400 | C18: =AVERAGE(L18,L33,L48,L63) -> 166.77 | D18: =MAX(M18,M33,M48,M63) -> 231.42 | E18: 180 | F18: =AVERAGE(N18,N33,N48,N63) -> 167.2325 | G18: 171.89 | K18: Dec | L18: 164.07 | M18: 181.18 | N18: 164.52 | O18: 165.38
K19: Annual | L19: =AVERAGE(L7:L18) -> 164.3990664 | M19: =MAX(M7:M18) -> 331.555145 | N19: =AVERAGE(N7:N18) -> 164.8343227 | O19: =MAX(O7:O18) -> 170.070663
J21: =+A5 -> 2024 | K21: mg/Nm3 | L21: Monthly mean of half-hourly averages | M21: Highest half- hourly average | N21: Monthly mean of daily averages | O21: Highest daily average
J22: A2 | K22: Jan | L22: 164.3728606 | M22: 243.518356 | N22: 164.5038532 | O22: 166.83754
K23: Feb | L23: 163.1622486 | M23: 184.619995 | N23: 163.1622478 | O23: 163.87941
K24: Mar | L24: 163.1779217 | M24: 276.070404 | N24: 163.1802575 | O24: 168.845276
K25: Apr | L25: 162.4034311 | M25: 171.973755 | N25: 162.5190267 | O25: 163.534149
K26: May | L26: 162.9510113 | M26: 185.339523 | N26: 163.1341998 | O26: 163.776474
K27: Jun | L27: 163.1721619 | M27: 192.902267 | N27: 163.1752146 | O27: 163.918594
K28: Jul | L28: 163.3095249 | M28: 210.871017 | N28: 165.361862 | O28: 163.3103101
K29: Aug | L29: 162.541045 | M29: 213.340698 | N29: 163.513184 | O29: 162.5212962
K30: Sep | L30: 163.3652071 | M30: 268.827545 | N30: 170.055023 | O30: 163.5344354
K31: Oct | L31: 161.7 | M31: 198.1 | N31: 163.14 | O31: 165.16
K32: Nov | L32: 162.9 | M32: 186.31 | N32: 163.2 | O32: 164.1
K33: Dec | L33: 162.95 | M33: 189.32 | N33: 162.95 | O33: 163.79
K34: Annual | L34: =AVERAGE(L22:L33) -> 163.000451 | M34: =MAX(M22:M33) -> 276.070404 | N34: =AVERAGE(N22:N33) -> 163.9912391 | O34: =MAX(O22:O33) -> 168.845276
J36: =+A5 -> 2024 | K36: mg/Nm3 | L36: Monthly mean of half-hourly averages | M36: Highest half- hourly average | N36: Monthly mean of daily averages | O36: Highest daily average
J37: A3 | K37: Jan | L37: 171.2192438 | M37: 213.333679 | N37: 171.2192442 | O37: 174.805115
K38: Feb | L38: 165.5901447 | M38: 206.823776 | N38: 165.5821075 | O38: 174.738174
K39: Mar | L39: 171.2 | M39: 289.4 | N39: 171.2 | O39: 181.4
K40: Apr | L40: 162.9782288 | M40: 256.611328 | N40: 162.9782283 | O40: 173.539001
K41: May | L41: 170.241959 | M41: 210.673859 | N41: 170.6337644 | O41: 172.597961
K42: Jun | L42: 171.8890798 | M42: 224.35466 | N42: 171.8890798 | O42: 174.24231
K43: Jul | L43: 165.2201013 | M43: 237.475174 | N43: 165.1781559 | O43: 173.103653
K44: Aug | L44: 169.4664738 | M44: 220.182617 | N44: 170.8628828 | O44: 175.973343
K45: Sep | L45: 170.6647816 | M45: 188.995941 | N45: 170.6565343 | O45: 171.849594
K46: Oct | L46: 159.45 | M46: 225.74 | N46: 159.6 | O46: 172.79
K47: Nov | L47: 169.21 | M47: 207.75 | N47: 170.12 | O47: 172.38
A48: Comments : | K48: Dec | L48: 169.74 | M48: 187.97 | N48: 171.23 | O48: 171.73
K49: Annual | L49: =AVERAGE(L37:L48) -> 168.0725011 | M49: =MAX(M37:M48) -> 289.4 | N49: =AVERAGE(N37:N48) -> 168.4291664 | O49: =MAX(O37:O48) -> 181.4
J51: =+A5 -> 2024 | K51: mg/Nm3 | L51: Monthly mean of half-hourly averages | M51: Highest half- hourly average | N51: Monthly mean of daily averages | O51: Highest daily average
J52: A4 | K52: Jan | L52: 171.8566334 | M52: 250.086456 | N52: 171.949337 | O52: 173.002548
K53: Feb | L53: 170.5437732 | M53: 267.415161 | N53: 170.573122 | O53: 173.796326
K54: Mar | L54: 172.4976837 | M54: 272.260742 | N54: 172.5068295 | O54: 175.17807
K55: Apr | L55: 172.5141001 | M55: 300.746429 | N55: 172.4950424 | O55: 177.118622
K56: May | L56: 171.9360516 | M56: 292.723297 | N56: 172.0648009 | O56: 173.843582
K57: Jun | L57: 169.8245173 | M57: 279.856476 | N57: 169.8259074 | O57: 173.664886
K58: Jul | L58: 170.6327626 | M58: 293.36203 | N58: 170.6335749 | O58: 174.961426
K59: Aug | L59: 171.2748039 | M59: 242.822998 | N59: 171.233746 | O59: 172.62439
K60: Sep | L60: 171.049809 | M60: 245.985214 | N60: 171.3611367 | O60: 173.306503
K61: Oct | L61: 159.46 | M61: 227.53 | N61: 162.24 | O61: 171.57
K62: Nov | L62: 166.86 | M62: 239.86 | N62: 166.72 | O62: 171.9
K63: Dec | L63: 170.32 | M63: 231.42 | N63: 170.23 | O63: 171.89
K64: Annual | L64: =AVERAGE(L52:L63) -> 169.8975112 | M64: =MAX(M52:M63) -> 300.746429 | N64: =AVERAGE(N52:N63) -> 170.1527914 | O64: =MAX(O52:O63) -> 177.118622
J66: =+A5 -> 2024 | K66: mg/Nm3 | L66: Monthly mean of half-hourly averages | M66: Highest half- hourly average | N66: Monthly mean of daily averages | O66: Highest daily average
J67: A5 | K67: Jan
K68: Feb
K69: Mar
K70: Apr
K71: May
K72: Jun
K73: Jul
K74: Aug
K75: Sep
K76: Oct
K77: Nov
K78: Dec
K79: Annual | L79: =AVERAGE(L67:L78) ->  | M79: =MAX(M67:M78) -> 0 | N79: =AVERAGE(N67:N78) ->  | O79: =MAX(O67:O78) -> 0

Sheet TOC
A1: =+'Cover Page'!$B$29 -> Annual Performance Report 2024 | E1: =+'Cover Page'!$B$33 -> Runcorn Energy From Waste Facility
A3: Monitoring of Total organic carbon emissions | D3: Whole Installation | G3: See Notes in Cell Q3 | J3: =+A3 -> Monitoring of Total organic carbon emissions | N3: Per Combustion Line | Q3: Notes:
Q4: User to add logic to complete Whole installation, Table A5:G18. From the data in Per Combustion Line, Table J6:O79, subject to No. of lines installed
A5: =+'Cover Page'!C39 -> 2024 | B5: 1/2 Hourly Reference Periods | E5: Daily Reference Periods
A6: mg/Nm3 | B6: 1/2 hourly TOC ELV | C6: Monthly mean of half-hourly averages | D6: Highest half- hourly average | E6: Daily TOC ELV | F6: Monthly mean of daily averages | G6: Highest daily average | J6: =+A5 -> 2024 | K6: mg/Nm3 | L6: Monthly mean of half-hourly averages | M6: Highest half- hourly average | N6: Monthly mean of daily averages | O6: Highest daily average
A7: Jan | B7: 20 | C7: =AVERAGE(L7,L22,L37,L52) -> 0.07341815617 | D7: =MAX(M7,M22,M37,M52) -> 37.138752 | E7: 10 | F7: =AVERAGE(N7,N22,N37,N52) -> 0.07334398192 | G7: =MAX(O7,O22,O37,O52) -> 0.781162 | J7: A1 | K7: Jan | L7: 0.002339491228 | M7: 0.797685 | N7: 0.002339421053 | O7: 0.017373
A8: Feb | B8: 20 | C8: =AVERAGE(L8,L23,L38,L53) -> 0.1060982734 | D8: =MAX(M8,M23,M38,M53) -> 39.575066 | E8: 10 | F8: =AVERAGE(N8,N23,N38,N53) -> 0.1064534349 | G8: =MAX(O8,O23,O38,O53) -> 4.181934 | K8: Feb | L8: 0.03605724758 | M8: 22.75 | N8: 0.03597853571 | O8: 0.489086
A9: Mar | B9: 20 | C9: =AVERAGE(L9,L24,L39,L54) -> 0.08156250792 | D9: 23.48 | E9: 10 | F9: 0.08111860204 | G9: =MAX(O9,O24,O39,O54) -> 0.469511 | K9: Mar | L9: 0.01253622474 | M9: 0.847989 | N9: 0.01282528 | O9: 0.089819 | Q9: Whole Installation table A5:G18:
A10: Apr | B10: 20 | C10: 0.09752554058 | D10: =MAX(M10,M25,M40,M55) -> 4.988266 | E10: 10 | F10: 0.09569773993 | G10: 0.340532 | K10: Apr | L10: 0.02557991492 | M10: 3.081374 | N10: 0.02018677778 | O10: 0.153212 | Q10: Mean: for 1/2 hourly and daily periods calculate mean of values across all operational combustion lines for the month
A11: May | B11: 20 | C11: 0.122650868 | D11: =MAX(M11,M26,M41,M56) -> 62.441113 | E11: 10 | F11: 0.1206679904 | G11: 1.337704 | K11: May | L11: 0.05996626652 | M11: 62.441113 | N11: 0.05996631034 | O11: 1.337704
A12: Jun | B12: 20 | C12: 0.06923444417 | D12: 12.903892 | E12: 10 | F12: 0.06936915 | G12: 1.5913 | K12: Jun | L12: 0.02816335 | M12: 7.889577 | N12: 0.02816333333 | O12: 0.182875
A13: Jul | B13: 20 | C13: 0.07746774155 | D13: 34.480858 | E13: 10 | F13: 0.0755523153 | G13: 0.771097 | K13: Jul | L13: 0.01994964572 | M13: 2.820197 | N13: 0.01220372 | O13: 0.075733 | Q13: Maximum: for 1/2 hourly and daily periods use the highest value across all operational combustion lines for the month
A14: Aug | B14: 20 | C14: 0.1159506795 | D14: 9.799232 | E14: 10 | F14: 0.1133416342 | G14: 0.587679 | K14: Aug | L14: 0.01854482235 | M14: 2.276182 | N14: 0.01854296 | O14: 0.103475
A15: Sep | B15: 20 | C15: 0.08778727621 | D15: 9.696012 | E15: 10 | F15: 0.08630247588 | G15: 0.572843 | K15: Sep | L15: 0.02790736115 | M15: 9.696012 | N15: 0.02681760714 | O15: 0.287695
A16: Oct | B16: 20 | C16: =AVERAGE(L16,L31,L46,L61) -> 0.135 | D16: =MAX(M16,M31,M46,M61) -> 13.42 | E16: 10 | F16: =AVERAGE(N16,N31,N46,N61) -> 0.135 | G16: =MAX(O16,O31,O46,O61) -> 0.53 | K16: Oct | L16: 0.01 | M16: 0.83 | N16: 0.01 | O16: 0.04
A17: Nov | B17: 20 | C17: =AVERAGE(L17,L32,L47,L62) -> 0.13 | D17: =MAX(M17,M32,M47,M62) -> 9.74 | E17: 10 | F17: =AVERAGE(N17,N32,N47,N62) -> 0.1175 | G17: =MAX(O17,O32,O47,O62) -> 0.56 | K17: Nov | L17: 0.03 | M17: 2.9 | N17: 0.02 | O17: 0.06
A18: Dec | B18: 20 | C18: =AVERAGE(L18,L33,L48,L63) -> 0.1375 | D18: 4.83 | E18: 10 | F18: 0.1325 | G18: =MAX(O18,O33,O48,O63) -> 0.83 | K18: Dec | L18: 0.02 | M18: 2.23 | N18: 0.02 | O18: 0.11
K19: Annual | L19: =AVERAGE(L7:L18) -> 0.02425369368 | M19: =MAX(M7:M18) -> 62.441113 | N19: =AVERAGE(N7:N18) -> 0.02225199545 | O19: =MAX(O7:O18) -> 1.337704
J21: =+A5 -> 2024 | K21: mg/Nm3 | L21: Monthly mean of half-hourly averages | M21: Highest half- hourly average | N21: Monthly mean of daily averages | O21: Highest daily average
J22: A2 | K22: Jan | L22: 0.002161494202 | M22: 0.153389 | N22: 0.002194782609 | O22: 0.008418
K23: Feb | L23: 0.01410375309 | M23: 0.475512 | N23: 0.01410381481 | O23: 0.082682
K24: Mar | L24: 0.01980470982 | M24: 2.234044 | N24: 0.01980560714 | O24: 0.08557
K25: Apr | L25: 0.04974776166 | M25: 1.232518 | N25: 0.0470746875 | O25: 0.115894
K26: May | L26: 0.04210711349 | M26: 2.092253 | N26: 0.03748924 | O26: 0.131706
K27: Jun | L27: 0.02330758681 | M27: 2.068734 | N27: 0.0232945 | O27: 0.120762
K28: Jul | L28: 0.03144719758 | M28: 1.400274 | N28: 0.03141409677 | O28: 0.125757
K29: Aug | L29: 0.04810866522 | M29: 0.789183 | N29: 0.04813116667 | O29: 0.187486
K30: Sep | L30: 0.04566723059 | M30: 1.025085 | N30: 0.04453472 | O30: 0.197687
K31: Oct | L31: 0.1 | M31: 13.42 | N31: 0.09 | O31: 0.46
K32: Nov | L32: 0.02 | M32: 1.86 | N32: 0.02 | O32: 0.1
K33: Dec | L33: 0 | M33: 0.32 | N33: 0 | O33: 0.01
K34: Annual | L34: =AVERAGE(L22:L33) -> 0.03303795937 | M34: =MAX(M22:M33) -> 13.42 | N34: =AVERAGE(N22:N33) -> 0.03150355129 | O34: =MAX(O22:O33) -> 0.46
J36: =+A5 -> 2024 | K36: mg/Nm3 | L36: Monthly mean of half-hourly averages | M36: Highest half- hourly average | N36: Monthly mean of daily averages | O36: Highest daily average
J37: A3 | K37: Jan | L37: 0.05052666398 | M37: 37.138752 | N37: 0.0505266129 | O37: 0.781162
K38: Feb | L38: 0.1561039928 | M38: 39.575066 | N38: 0.158996069 | O38: 4.181934
K39: Mar | L39: 0.01997041657 | M39: 23.48 | N39: 0.01796723529 | O39: 0.079318
K40: Apr | L40: 0.03286538889 | M40: 4.988266 | N40: 0.03286544444 | O40: 0.340532
K41: May | L41: 0.04950963541 | M41: 1.88651 | N41: 0.04542661111 | O41: 0.294818
K42: Jun | L42: 0.08965564306 | M42: 12.903892 | N42: 0.08965563333 | O42: 1.5913
K43: Jul | L43: 0.06220606945 | M43: 34.480858 | N43: 0.062291 | O43: 0.771097
K44: Aug | L44: 0.1169408106 | M44: 9.799232 | N44: 0.1058574815 | O44: 0.351062
K45: Sep | L45: 0.1089854034 | M45: 3.042869 | N45: 0.1088396875 | O45: 0.572843
K46: Oct | L46: 0.06 | M46: 0.62 | N46: 0.06 | O46: 0.19
K47: Nov | L47: 0.06 | M47: 9.74 | N47: 0.02 | O47: 0.22
A48: Comments : | K48: Dec | L48: 0.05 | M48: 2.72 | N48: 0.02 | O48: 0.06
K49: Annual | L49: =AVERAGE(L37:L48) -> 0.07139700202 | M49: =MAX(M37:M48) -> 39.575066 | N49: =AVERAGE(N37:N48) -> 0.06436881459 | O49: =MAX(O37:O48) -> 4.181934
J51: =+A5 -> 2024 | K51: mg/Nm3 | L51: Monthly mean of half-hourly averages | M51: Highest half- hourly average | N51: Monthly mean of daily averages | O51: Highest daily average
J52: A4 | K52: Jan | L52: 0.2386449753 | M52: 1.943921 | N52: 0.2383151111 | O52: 0.334377
K53: Feb | L53: 0.2181281002 | M53: 4.075778 | N53: 0.21673532 | O53: 0.393802
K54: Mar | L54: 0.2739386806 | M54: 11.047766 | N54: 0.2738762857 | O54: 0.469511
K55: Apr | L55: 0.2819090969 | M55: 1.128392 | N55: 0.28266405 | O55: 0.327513
K56: May | L56: 0.3390204568 | M56: 8.385799 | N56: 0.3397898 | O56: 0.571729
K57: Jun | L57: 0.1358111968 | M57: 4.527244 | N57: 0.1363631333 | O57: 0.437449
K58: Jul | L58: 0.1962680534 | M58: 6.820232 | N58: 0.1963004444 | O58: 0.469089
K59: Aug | L59: 0.28020842 | M59: 7.47089 | N59: 0.2808349286 | O59: 0.587679
K60: Sep | L60: 0.1685891097 | M60: 4.627696 | N60: 0.1650178889 | O60: 0.297723
K61: Oct | L61: 0.37 | M61: 5.42 | N61: 0.38 | O61: 0.53
K62: Nov | L62: 0.41 | M62: 3.9 | N62: 0.41 | O62: 0.56
K63: Dec | L63: 0.48 | M63: 4.83 | N63: 0.49 | O63: 0.83
K64: Annual | L64: =AVERAGE(L52:L63) -> 0.2827098408 | M64: =MAX(M52:M63) -> 11.047766 | N64: =AVERAGE(N52:N63) -> 0.2841580802 | O64: =MAX(O52:O63) -> 0.83
J66: =+A5 -> 2024 | K66: mg/Nm3 | L66: Monthly mean of half-hourly averages | M66: Highest half- hourly average | N66: Monthly mean of daily averages | O66: Highest daily average
J67: A5 | K67: Jan
K68: Feb
K69: Mar
K70: Apr
K71: May
K72: Jun
K73: Jul
K74: Aug
K75: Sep
K76: Oct
K77: Nov
K78: Dec
K79: Annual | L79: =AVERAGE(L67:L78) ->  | M79: =MAX(M67:M78) -> 0 | N79: =AVERAGE(N67:N78) ->  | O79: =MAX(O67:O78) -> 0

Sheet Particulates
A1: =+'Cover Page'!$B$29 -> Annual Performance Report 2024 | E1: =+'Cover Page'!$B$33 -> Runcorn Energy From Waste Facility
A3: Monitoring of Particulate matter emissions | D3: Whole Installation | G3: See Notes in Cell Q3 | J3: =+A3 -> Monitoring of Particulate matter emissions | N3: Per Combustion Line | Q3: Notes:
A5: =+'Cover Page'!C39 -> 2024 | B5: 1/2 Hourly Reference Periods | E5: Daily Reference Periods | Q5: User to add logic to complete Whole installation, Table A5:G18. From the data in Per Combustion Line, Table J6:O79, subject to No. of lines installed
A6: mg/Nm3 | B6: 1/2 hourly PM ELV | C6: Monthly mean of half-hourly averages | D6: Highest half- hourly average | E6: Daily PM ELV | F6: Monthly mean of daily averages | G6: Highest daily average | J6: =+A5 -> 2024 | K6: mg/Nm3 | L6: Monthly mean of half-hourly averages | M6: Highest half- hourly average | N6: Monthly mean of daily averages | O6: Highest daily average
A7: Jan | B7: 30 | C7: =AVERAGE(L7,L22,L37,L52) -> 0.8424110396 | D7: =MAX(M7,M22,M37,M52) -> 11.168981 | E7: 5 | F7: =AVERAGE(N7,N22,N37,N52) -> 0.8471281495 | G7: =MAX(O7,O22,O37,O52) -> 3.018158 | J7: A1 | K7: Jan | L7: 0.4100200965 | M7: 0.484677 | N7: 0.4100201053 | O7: 0.435087
A8: Feb | B8: 30 | C8: =AVERAGE(L8,L23,L38,L53) -> 0.6244513903 | D8: =MAX(M8,M23,M38,M53) -> 3.664479 | E8: 5 | F8: =AVERAGE(N8,N23,N38,N53) -> 0.6230693443 | G8: =MAX(O8,O23,O38,O53) -> 2.388949 | K8: Feb | L8: 0.3850131126 | M8: 0.614495 | N8: 0.3849766071 | O8: 0.459028
A9: Mar | B9: 30 | C9: 0.5552302121 | D9: =MAX(M9,M24,M39,M54) -> 5.422336 | E9: 5 | F9: 0.5526433064 | G9: =MAX(O9,O24,O39,O54) -> 1.631833 | K9: Mar | L9: 0.4685031091 | M9: 0.818771 | N9: 0.46877812 | O9: 0.554225
A10: Apr | B10: 30 | C10: 0.7044549995 | D10: =MAX(M10,M25,M40,M55) -> 4.414814 | E10: 5 | F10: 0.7051035118 | G10: =MAX(O10,O25,O40,O55) -> 2.212699 | K10: Apr | L10: 0.4983811271 | M10: 0.773271 | N10: 0.4973025 | O10: 0.566686 | Q10: Whole Installation table A5:G18:
A11: May | B11: 30 | C11: 0.7053156155 | D11: 6.264904 | E11: 5 | F11: 0.7061401433 | G11: 2.064548 | K11: May | L11: 0.5 | M11: 0.95 | N11: 0.5 | O11: 0.59 | Q11: Mean: for 1/2 hourly and daily periods calculate mean of values across all operational combustion lines for the month
A12: Jun | B12: 30 | C12: 0.6002951126 | D12: 1.769367 | E12: 5 | F12: 0.6005306167 | G12: 1.660582 | K12: Jun | L12: 0.6914378806 | M12: 1.769367 | N12: 0.6914378667 | O12: 1.660582
A13: Jul | B13: 30 | C13: 1.065607698 | D13: 4.552198 | E13: 5 | F13: 0.7015064345 | G13: 2.292174 | K13: Jul | L13: 0.6152997298 | M13: 1.33038 | N13: 0.60848736 | O13: 0.7727
A14: Aug | B14: 30 | C14: 0.611524875 | D14: 4.863525 | E14: 5 | F14: 0.82611074 | G14: 2.236346 | K14: Aug | L14: 0.6228936647 | M14: 1.129682 | N14: 0.62303012 | O14: 0.826099 | Q14: Maximum: for 1/2 hourly and daily periods use the highest value across all operational combustion lines for the month
A15: Sep | B15: 30 | C15: 0.7378598396 | D15: 4.233147 | E15: 5 | F15: 0.7255273402 | G15: 1.350473 | K15: Sep | L15: 0.6717870318 | M15: 4.233147 | N15: 0.67259825 | O15: 1.163157
A16: Oct | B16: 30 | C16: =AVERAGE(L16,L31,L46,L61) -> 7.355 | D16: =MAX(M16,M31,M46,M61) -> 28952.95 | E16: 5 | F16: =AVERAGE(N16,N31,N46,N61) -> 7.665 | G16: =MAX(O16,O31,O46,O61) -> 603.97 | K16: Oct | L16: 0.96 | M16: 8.93 | N16: 0.96 | O16: 1.59
A17: Nov | B17: 30 | C17: =AVERAGE(L17,L32,L47,L62) -> 0.7575 | D17: =MAX(M17,M32,M47,M62) -> 11.2 | E17: 5 | F17: =AVERAGE(N17,N32,N47,N62) -> 0.7275 | G17: =MAX(O17,O32,O47,O62) -> 1.67 | K17: Nov | L17: 0.58 | M17: 11.2 | N17: 0.47 | O17: 0.6
A18: Dec | B18: 30 | C18: 0.5725 | D18: =MAX(M18,M33,M48,M63) -> 2.93 | E18: 5 | F18: 0.555 | G18: =MAX(O18,O33,O48,O63) -> 1.11 | K18: Dec | L18: 0.53 | M18: 1.95 | N18: 0.53 | O18: 1.11
K19: Annual | L19: =AVERAGE(L7:L18) -> 0.5777779793 | M19: =MAX(M7:M18) -> 11.2 | N19: =AVERAGE(N7:N18) -> 0.5680525774 | O19: =MAX(O7:O18) -> 1.660582
J21: =+A5 -> 2024 | K21: mg/Nm3 | L21: Monthly mean of half-hourly averages | M21: Highest half- hourly average | N21: Monthly mean of daily averages | O21: Highest daily average
J22: A2 | K22: Jan | L22: 0.6942522186 | M22: 2.950825 | N22: 0.7015123913 | O22: 1.275872
K23: Feb | L23: 0.5502556659 | M23: 2.454719 | N23: 0.5502557037 | O23: 1.378722
K24: Mar | L24: 0.8221136406 | M24: 5.422336 | N24: 0.8215161786 | O24: 1.631833
K25: Apr | L25: 0.8348351969 | M25: 3.499302 | N25: 0.838569125 | O25: 1.439256
K26: May | L26: 1.413378766 | M26: 4.72473 | N26: 1.40335492 | O26: 2.064548
K27: Jun | L27: 1.126335367 | M27: 1.693884 | N27: 1.127271 | O27: 1.487309
K28: Jul | L28: 2.426846 | M28: 0.9774723286 | N28: 0.9767982258 | O28: 1.649627
K29: Aug | L29: 0.623069 | M29: 4.863525 | N29: 1.47322425 | O29: 2.236346
K30: Sep | L30: 0.970175917 | M30: 4.048589 | N30: 0.92156584 | O30: 1.350473
K31: Oct | L31: 26.99 | M31: 28952.95 | N31: 28.26 | O31: 603.97 | P31: *Moisture analyser giving untrue muliplyer to low dust reading
K32: Nov | L32: 0.89 | M32: 5.34 | N32: 0.91 | O32: 1.66
K33: Dec | L33: 0.81 | M33: 1.25 | N33: 0.81 | O33: 0.97
K34: Annual | L34: =AVERAGE(L22:L33) -> 3.179271814 | M34: =MAX(M22:M33) -> 28952.95 | N34: =AVERAGE(N22:N33) -> 3.23283897 | O34: =MAX(O22:O33) -> 603.97
J36: =+A5 -> 2024 | K36: mg/Nm3 | L36: Monthly mean of half-hourly averages | M36: Highest half- hourly average | N36: Monthly mean of daily averages | O36: Highest daily average
J37: A3 | K37: Jan | L37: 0.3101380524 | M37: 3.010965 | N37: 0.3101380645 | O37: 0.53205
K38: Feb | L38: 0.3367584479 | M38: 1.243641 | N38: 0.3366785862 | O38: 0.528834
K39: Mar | L39: 0.5464105858 | M39: 1.490131 | N39: 0.5363961176 | O39: 0.863712
K40: Apr | L40: 1.100770126 | M40: 4.414814 | N40: 1.100770222 | O40: 2.212699
K41: May | L41: 0.5014342097 | M41: 6.264904 | N41: 0.5150563333 | O41: 1.330788
K42: Jun | L42: 0.1718925361 | M42: 0.458848 | N42: 0.1718924667 | O42: 0.318363
K43: Jul | L43: 0.8258229843 | M43: 4.552198 | N43: 0.8264158929 | O43: 2.292174
K44: Aug | L44: 0.8277398331 | M44: 1.933774 | N44: 0.8359865185 | O44: 1.125099
K45: Sep | L45: 0.9017437937 | M45: 1.977672 | N45: 0.9022684375 | O45: 1.288857
K46: Oct | L46: 0.86 | M46: 8.04 | N46: 0.85 | O46: 2.37
K47: Nov | L47: 0.99 | M47: 10.07 | N47: 0.95 | O47: 1.67
A48: Comments : | K48: Dec | L48: 0.21 | M48: 2.93 | N48: 0.14 | O48: 0.4
K49: Annual | L49: =AVERAGE(L37:L48) -> 0.6318925474 | M49: =MAX(M37:M48) -> 10.07 | N49: =AVERAGE(N37:N48) -> 0.6229668866 | O49: =MAX(O37:O48) -> 2.37
J51: =+A5 -> 2024 | K51: mg/Nm3 | L51: Monthly mean of half-hourly averages | M51: Highest half- hourly average | N51: Monthly mean of daily averages | O51: Highest daily average
J52: A4 | K52: Jan | L52: 1.955233791 | M52: 11.168981 | N52: 1.966842037 | O52: 3.018158
K53: Feb | L53: 1.225778335 | M53: 3.664479 | N53: 1.22036648 | O53: 2.388949
K54: Mar | L54: 0.3838935129 | M54: 0.637806 | N54: 0.3838828095 | O54: 0.453456
K55: Apr | L55: 0.3838335479 | M55: 0.498959 | N55: 0.3837722 | O55: 0.409224
K56: May | L56: 0.4064494867 | M56: 0.612406 | N56: 0.40614932 | O56: 0.438389
K57: Jun | L57: 0.4115146669 | M57: 0.695858 | N57: 0.4115211333 | O57: 0.474216
K58: Jul | L58: 0.3944620782 | M58: 1.07186 | N58: 0.3943242593 | O58: 0.476472
K59: Aug | L59: 0.3723970022 | M59: 0.491127 | N59: 0.3722020714 | O59: 0.406512
K60: Sep | L60: 0.407732616 | M60: 0.770054 | N60: 0.4056768333 | O60: 0.448202
K61: Oct | L61: 0.61 | M61: 5.19 | N61: 0.59 | O61: 0.68
K62: Nov | L62: 0.57 | M62: 3.54 | N62: 0.58 | O62: 0.79
K63: Dec | L63: 0.74 | M63: 1.46 | N63: 0.74 | O63: 1
K64: Annual | L64: =AVERAGE(L52:L63) -> 0.6551079197 | M64: =MAX(M52:M63) -> 11.168981 | N64: =AVERAGE(N52:N63) -> 0.6545614287 | O64: =MAX(O52:O63) -> 3.018158
J66: =+A5 -> 2024 | K66: mg/Nm3 | L66: Monthly mean of half-hourly averages | M66: Highest half- hourly average | N66: Monthly mean of daily averages | O66: Highest daily average
J67: A5 | K67: Jan
K68: Feb
K69: Mar
K70: Apr
K71: May
K72: Jun
K73: Jul
K74: Aug
K75: Sep
K76: Oct
K77: Nov
K78: Dec
K79: Annual | L79: =AVERAGE(L67:L78) ->  | M79: =MAX(M67:M78) -> 0 | N79: =AVERAGE(N67:N78) ->  | O79: =MAX(O67:O78) -> 0

Sheet CO 0.5 hourly
A1: =+'Cover Page'!$B$29 -> Annual Performance Report 2024 | E1: =+'Cover Page'!$B$33 -> Runcorn Energy From Waste Facility
A3: Monitoring of Carbon Monoxide (half hourly) | D3: Whole Installation | G3: See Notes in Cell Q3 | J3: =+A3 -> Monitoring of Carbon Monoxide (half hourly) | N3: Per Combustion Line | Q3: Notes:
A5: Please complete this tab for your plant if you have 1/2 hourly CO ELVs; otherwise, leave it blank and complete the CO 95% 10 min tab
Q7: User to add logic to complete Whole installation, Table A5:G18. From the data in Per Combustion Line, Table J6:O79, subject to No. of lines installed
A8: =+'Cover Page'!C39 -> 2024 | B8: 1/2 Hourly Reference Periods | E8: Daily Reference Periods
A9: mg/Nm3 | B9: 1/2 hourly CO ELV | C9: Monthly mean of half-hourly averages | D9: Highest half- hourly average | E9: Daily CO ELV | F9: Monthly mean of daily averages | G9: Highest daily average | J9: =+A8 -> 2024 | K9: mg/Nm3 | L9: Monthly mean of half-hourly averages | M9: Highest half- hourly average | N9: Monthly mean of daily averages | O9: Highest daily average
A10: Jan | B10: 100 | E10: 50 | J10: A1 | K10: Jan
A11: Feb | B11: =+B10 -> 100 | E11: =+E10 -> 50 | K11: Feb
A12: Mar | B12: =+B11 -> 100 | E12: =+E11 -> 50 | K12: Mar | Q12: Whole Installation table A5:G18:
A13: Apr | B13: 100 | E13: 50 | K13: Apr | Q13: Mean: for 1/2 hourly and daily periods calculate mean of values across all operational combustion lines for the month
A14: May | B14: 100 | E14: 50 | K14: May
A15: Jun | B15: 100 | E15: 50 | K15: Jun
A16: Jul | B16: 100 | E16: 50 | K16: Jul | Q16: Maximum: for 1/2 hourly and daily periods use the highest value across all operational combustion lines for the month
A17: Aug | B17: 100 | E17: 50 | K17: Aug
A18: Sep | B18: 100 | E18: 50 | K18: Sep
A19: Oct | B19: 100 | E19: 50 | K19: Oct
A20: Nov | B20: 100 | E20: 50 | K20: Nov
A21: Dec | B21: 100 | E21: 50 | K21: Dec
K22: Annual | L22: =AVERAGE(L10:L21) ->  | M22: =MAX(M10:M21) -> 0 | N22: =AVERAGE(N10:N21) ->  | O22: =MAX(O10:O21) -> 0
J24: =+A8 -> 2024 | K24: mg/Nm3 | L24: Monthly mean of half-hourly averages | M24: Highest half- hourly average | N24: Monthly mean of daily averages | O24: Highest daily average
J25: A2 | K25: Jan
K26: Feb
K27: Mar
K28: Apr
K29: May
K30: Jun
K31: Jul
K32: Aug
K33: Sep
K34: Oct
K35: Nov
K36: Dec
K37: Annual | L37: =AVERAGE(L25:L36) ->  | M37: =MAX(M25:M36) -> 0 | N37: =AVERAGE(N25:N36) ->  | O37: =MAX(O25:O36) -> 0
J39: =+A8 -> 2024 | K39: mg/Nm3 | L39: Monthly mean of half-hourly averages | M39: Highest half- hourly average | N39: Monthly mean of daily averages | O39: Highest daily average
J40: A3 | K40: Jan
K41: Feb
K42: Mar
K43: Apr
K44: May
K45: Jun
K46: Jul
K47: Aug
K48: Sep
K49: Oct
K50: Nov
A51: Comments : | K51: Dec
K52: Annual | L52: =AVERAGE(L40:L51) ->  | M52: =MAX(M40:M51) -> 0 | N52: =AVERAGE(N40:N51) ->  | O52: =MAX(O40:O51) -> 0
J54: =+A8 -> 2024 | K54: mg/Nm3 | L54: Monthly mean of half-hourly averages | M54: Highest half- hourly average | N54: Monthly mean of daily averages | O54: Highest daily average
J55: A4 | K55: Jan
K56: Feb
K57: Mar
K58: Apr
K59: May
K60: Jun
K61: Jul
K62: Aug
K63: Sep
K64: Oct
K65: Nov
K66: Dec
K67: Annual | L67: =AVERAGE(L55:L66) ->  | M67: =MAX(M55:M66) -> 0 | N67: =AVERAGE(N55:N66) ->  | O67: =MAX(O55:O66) -> 0
J69: =+A8 -> 2024 | K69: mg/Nm3 | L69: Monthly mean of half-hourly averages | M69: Highest half- hourly average | N69: Monthly mean of daily averages | O69: Highest daily average
J70: A5 | K70: Jan
K71: Feb
K72: Mar
K73: Apr
K74: May
K75: Jun
K76: Jul
K77: Aug
K78: Sep
K79: Oct
K80: Nov
K81: Dec
K82: Annual | L82: =AVERAGE(L70:L81) ->  | M82: =MAX(M70:M81) -> 0 | N82: =AVERAGE(N70:N81) ->  | O82: =MAX(O70:O81) -> 0

Sheet CO 95% 10 min
A1: =+'Cover Page'!$B$29 -> Annual Performance Report 2024 | E1: =+'Cover Page'!$B$33 -> Runcorn Energy From Waste Facility
A3: Monitoring of Carbon Monoxide (10-minute avg) | E3: Whole Installation | H3: See Notes in Cell S3 | J3: =+A3 -> Monitoring of Carbon Monoxide (10-minute avg) | O3: Per Combustion Line | Q3: Notes: | S3: Notes:
A5: Please complete this tab for your plant if you have 10-minute average CO ELVs; otherwise, leave it blank and complete the CO 0.5 hourly tab
S7: User to add logic to complete Whole installation, Table A5:H18. From the data in Per Combustion Line, Table K6:Q79, subject to No. of lines installed
A8: =+'Cover Page'!C39 -> 2024 | B8: 10-minute Reference Periods | F8: Daily Reference Periods
A9: mg/Nm3 | B9: 95%ile 10-min avg CO ELV | C9: Highest daily 95%ile 10-min average | D9: Monthly mean of 10-min averages | E9: Highest 10-min average | F9: Daily CO ELV | G9: Monthly mean of daily averages | H9: Highest daily average | K9: =+A8 -> 2024 | L9: mg/Nm3 | M9: Highest daily 95%ile 10-min average | N9: Monthly mean of 10-min averages | O9: Highest 10-min average | P9: Monthly mean of daily averages | Q9: Highest daily average
A10: Jan | B10: 150 | C10: =MAX(M10,M25,M40,M55) -> 665.869537 | D10: =AVERAGE(N10,N25,N40,N55) -> 4.824025123 | E10: =MAX(O10,O25,O40,O55) -> 141.944467 | F10: 50 | G10: =AVERAGE(P10,P25,P40,P55) -> 2.809749191 | H10: =MAX(Q10,Q25,Q40,Q55) -> 27.637487 | K10: A1 | L10: Jan | M10: 9.6005675 | N10: 3.201810561 | O10: 5.1074845 | P10: 3.213349684 | Q10: 5.102532
A11: Feb | B11: =+B10 -> 150 | C11: =MAX(M11,N26,M41,M56) -> 253.401871 | D11: =AVERAGE(N11,N26,N41,N56) -> 3.950814343 | E11: =MAX(O11,O26,O41,O56) -> 253.401871 | F11: =+F10 -> 50 | G11: =AVERAGE(P11,P26,P41,P56) -> 3.21776489 | H11: =MAX(Q11,Q26,Q41,Q56) -> 28.3076 | L11: Feb | M11: 9.8709285 | N11: 4.505707509 | O11: 9.8709285 | P11: 4.365756893 | Q11: 28.3076
A12: Mar | B12: =+B11 -> 150 | C12: =MAX(M12,M27,M42,M57) -> 1112.097473 | D12: =AVERAGE(N12,N27,N42,N57) -> 5.892133312 | E12: =MAX(O12,O27,O42,O57) -> 1112.097473 | F12: =+F11 -> 50 | G12: =AVERAGE(P12,P27,P42,P57) -> 2.943348324 | H12: 16.124493 | L12: Mar | M12: 1112.097473 | N12: 12.68199736 | O12: 1112.097473 | P12: 2.827446607 | Q12: 6.197641 | S12: Whole Installation table A5:H18:
A13: Apr | B13: 150 | C13: 32.711651 | D13: =AVERAGE(N13,N28,N43,N58) -> 3.643023114 | E13: =MAX(O13,O28,O43,O58) -> 69.0495225 | F13: 50 | G13: =AVERAGE(P13,P28,P43,P58) -> 2.233670732 | H13: 7.946134 | L13: Apr | M13: 13.199964 | N13: 2.127094791 | O13: 3.667124417 | P13: 2.091732368 | Q13: 3.369067 | S13: Mean: for 10-min and daily periods use average of all operational combustion lines.
A14: May | B14: 150 | C14: 1597.045471 | D14: 13.92657861 | E14: 1597.045471 | F14: 50 | G14: 2.959349207 | H14: 47.988579 | L14: May | M14: 11.26821 | N14: 2.440652388 | O14: 11.26821 | P14: 2.424592655 | Q14: 12.45055
A15: Jun | B15: 150 | C15: 79.608021 | D15: 2.872212575 | E15: 79.608021 | F15: 50 | G15: 2.552950558 | H15: 35.997051 | L15: Jun | M15: 37.1042535 | N15: 4.953899634 | O15: 37.1042535 | P15: 4.9538996 | Q15: 35.997051
A16: Jul | B16: 150 | C16: 860.7134095 | D16: 4.188792194 | E16: 201.8921979 | F16: 50 | G16: 2.813801178 | H16: 60.822624 | L16: Jul | M16: 860.7134095 | N16: 11.07896388 | O16: 201.8921979 | P16: 5.192631581 | Q16: 60.822624 | S16: Maximum: for 10-min and daily periods use the highest of all operational combustion lines in any month.
A17: Aug | B17: 150 | C17: 43.5792675 | D17: 2.248109622 | E17: 43.5792675 | F17: 50 | G17: 2.283208316 | H17: 54.864738 | L17: Aug | M17: 11.8740575 | N17: 1.762782593 | O17: 11.8740575 | P17: 1.7629722 | Q17: 3.816689
A18: Sep | B18: 150 | C18: 970.051178 | D18: 10.06194843 | E18: 970.051178 | F18: 50 | G18: 3.161984435 | H18: 71.517433 | L18: Sep | M18: 970.051178 | N18: 22.93210365 | O18: 970.051178 | P18: 5.487537333 | Q18: 71.192284
A19: Oct | B19: 150 | C19: =MAX(M19,M34,M49,M64) -> 1329.95 | D19: =AVERAGE(N19,N34,N49,N64) -> 9.555 | E19: =MAX(O19,O34,O49,O64) -> 1668.75 | F19: 50 | G19: =AVERAGE(P19,P34,P49,P64) -> 2.95 | H19: =MAX(Q19,Q34,Q49,Q64) -> 57.26 | L19: Oct | M19: 1329.95 | N19: 18.4 | O19: 1531.81 | P19: 2.27 | Q19: 5.5
A20: Nov | B20: 150 | C20: =MAX(M20,N35,M50,M65) -> 1244.84 | D20: =AVERAGE(N20,N35,N50,N65) -> 7.7975 | E20: =MAX(O20,O35,O50,O65) -> 1653.69 | F20: 50 | G20: =AVERAGE(P20,P35,P50,P65) -> 2.5275 | H20: =MAX(Q20,Q35,Q50,Q65) -> 60.54 | L20: Nov | M20: 1244.84 | N20: 14.25 | O20: 1653.69 | P20: 2.93 | Q20: 20.17
A21: Dec | B21: 150 | C21: =MAX(M21,M36,M51,M66) -> 941.68 | D21: =AVERAGE(N21,N36,N51,N66) -> 5.6875 | E21: =MAX(O21,O36,O51,O66) -> 1805.92 | F21: 50 | G21: =AVERAGE(P21,P36,P51,P66) -> 1.3225 | H21: 5.13 | L21: Dec | M21: 12.35 | N21: 2.7 | O21: 83.03 | P21: 2.7 | Q21: 4.81
L22: Annual | M22: =MAX(M10:M21) -> 1329.95 | N22: =AVERAGE(N10:N21) -> 8.419584363 | O22: =MAX(O10:O21) -> 1653.69 | P22: =AVERAGE(P10:P21) -> 3.35165991 | Q22: =MAX(Q10:Q21) -> 71.192284
K24: =+A8 -> 2024 | L24: mg/Nm3 | M24: Highest daily 95%ile 10-min average | N24: Monthly mean of 10-min averages | O24: Highest 10-min average | P24: Monthly mean of daily averages | Q24: Highest daily average
K25: A2 | L25: Jan | M25: 396.870621 | N25: 3.442930474 | O25: 76.09333476 | P25: 0.3162450417 | Q25: 1.068517
L26: Feb | M26: 8.67939 | N26: 0.8775040908 | O26: 8.67939 | P26: 0.8775041481 | Q26: 3.323341
L27: Mar | M27: 8.154349 | N27: 1.810496231 | O27: 8.154349 | P27: 1.809130714 | Q27: 3.276786
L28: Apr | M28: 2.509163 | N28: 6.397922639 | O28: 69.0495225 | P28: 0.7920209444 | Q28: 2.509163
L29: May | M29: 1.107987 | N29: 29.94327981 | O29: 1.107987 | P29: 0.352060037 | Q29: 1.107987
L30: Jun | M30: 4.128194 | N30: 1.815948617 | O30: 4.128194 | P30: 0.5448937 | Q30: 4.128194
L31: Jul | M31: 6.272111 | N31: 0.5039746577 | O31: 1.587205972 | P31: 0.5007137742 | Q31: 1.532111
L32: Aug | M32: 8.1880355 | N32: 0.8967560353 | O32: 8.1880355 | P32: 0.8600304583 | Q32: 3.530948
L33: Sep | M33: 318.8333435 | N33: 3.124659117 | O33: 318.8333435 | P33: 1.253744448 | Q33: 21.421471
L34: Oct | M34: 475.29 | N34: 6.9 | O34: 798.31 | P34: 1.02 | Q34: 6.81
L35: Nov | M35: 363.86 | N35: 9.12 | O35: 813.02 | P35: 3.78 | Q35: 60.54
L36: Dec | M36: 6.2 | N36: 0.75 | O36: 33.39 | P36: 0.75 | Q36: 1.56
L37: Annual | M37: =MAX(M25:M36) -> 475.29 | N37: =AVERAGE(N25:N36) -> 5.465289306 | O37: =MAX(O25:O36) -> 813.02 | P37: =AVERAGE(P25:P36) -> 1.071361939 | Q37: =MAX(Q25:Q36) -> 60.54
K39: =+A8 -> 2024 | L39: mg/Nm3 | M39: Highest daily 95%ile 10-min average | N39: Monthly mean of 10-min averages | O39: Highest 10-min average | P39: Monthly mean of daily averages | Q39: Highest daily average
K40: A3 | L40: Jan | M40: 27.4527065 | N40: 3.326766501 | O40: 25.19998765 | P40: 3.405432935 | Q40: 27.637487
L41: Feb | M41: 26.3665125 | N41: 2.760175709 | O41: 26.3665125 | P41: 2.69150031 | Q41: 7.492095
L42: Mar | M42: 249.562119 | N42: 5.004495046 | O42: 249.562119 | P42: 3.068358737 | Q42: 16.124493
L43: Apr | M43: 32.711651 | N43: 2.996116792 | O43: 7.946133701 | P43: 2.996099167 | Q43: 7.946134
L44: May | M44: 1597.045471 | N44: 19.14424486 | O44: 1597.045471 | P44: 6.106188444 | Q44: 47.988579
L45: Jun | M45: 79.608021 | N45: 2.201883641 | O45: 79.608021 | P45: 2.201775267 | Q45: 10.965916
L46: Jul | M46: 9.9720605 | N46: 3.994717446 | O46: 45.0988337 | P46: 4.366634357 | Q46: 57.113258
L47: Aug | M47: 43.5792675 | N47: 4.208544387 | O47: 43.5792675 | P47: 4.385437464 | Q47: 54.864738
L48: Sep | M48: 18.4165105 | N48: 1.18074357 | O48: 18.4165105 | P48: 1.176584708 | Q48: 4.630241
L49: Oct | M49: 185.61 | N49: 5.08 | O49: 668.32 | P49: 3.94 | Q49: 16.87
L50: Nov | M50: 286.9 | N50: 6.32 | O50: 436.52 | P50: 2.11 | Q50: 6.54
A51: Comments : | L51: Dec | M51: 251.97 | N51: 5.84 | O51: 354.1 | P51: 1.1 | Q51: 5.13
A52: Environment Agency explanatory note: The 10-minute average ELV is based on the “95th percentile”. In this case this means that 95% of the 10 minute averages in the relevant 24-hour period (i.e. 137) must be below 150 mg/Nm3, and 5% (i.e. 7) are allowed to be any value above 150 mg/Nm3. Whilst we expect operators to minimise CO emissions at all times, it is perfectly acceptable for the value of the maximum 10-minute average to be above 150 mg/Nm3, provided the 95th percentile ELV has been met for that period. | L52: Annual | M52: =MAX(M40:M51) -> 1597.045471 | N52: =AVERAGE(N40:N51) -> 5.171473996 | O52: =MAX(O40:O51) -> 1597.045471 | P52: =AVERAGE(P40:P51) -> 3.129000949 | Q52: =MAX(Q40:Q51) -> 57.113258
K54: =+A8 -> 2024 | L54: mg/Nm3 | M54: Highest daily 95%ile 10-min average | N54: Monthly mean of 10-min averages | O54: Highest 10-min average | P54: Monthly mean of daily averages | Q54: Highest daily average
K55: A4 | L55: Jan | M55: 665.869537 | N55: 9.324592956 | O55: 141.944467 | P55: 4.303969103 | Q55: 13.72017
L56: Feb | M56: 253.401871 | N56: 7.659870061 | O56: 253.401871 | P56: 4.936298207 | Q56: 12.216054
L57: Mar | M57: 47.3402025 | N57: 4.071544615 | O57: 47.3402025 | P57: 4.068457238 | Q57: 12.707671
L58: Apr | M58: 19.1690185 | N58: 3.050958234 | O58: 6.535614722 | P58: 3.05483045 | Q58: 6.590773
L59: May | M59: 181.195251 | N59: 4.178137383 | O59: 181.195251 | P59: 2.954555692 | Q59: 9.15342
L60: Jun | M60: 70.5373995 | N60: 2.517118409 | O60: 70.5373995 | P60: 2.511233667 | Q60: 13.460907
L61: Jul | M61: 12.619054 | N61: 1.177512797 | O61: 7.231525514 | P61: 1.195225 | Q61: 7.534422
L62: Aug | M62: 35.7822225 | N62: 2.124355475 | O62: 35.7822225 | P62: 2.124393143 | Q62: 8.443925
L63: Sep | M63: 529.930908 | N63: 13.01028738 | O63: 529.930908 | P63: 4.73007125 | Q63: 71.517433
L64: Oct | M64: 1114.13 | N64: 7.84 | O64: 1668.75 | P64: 4.57 | Q64: 57.26
L65: Nov | M65: 19.08 | N65: 1.5 | O65: 311 | P65: 1.29 | Q65: 4.43
L66: Dec | M66: 941.68 | N66: 13.46 | O66: 1805.92 | P66: 0.74 | Q66: 1.35
L67: Annual | M67: =MAX(M55:M66) -> 1114.13 | N67: =AVERAGE(N55:N66) -> 5.826198109 | O67: =MAX(O55:O66) -> 1805.92 | P67: =AVERAGE(P55:P66) -> 3.039919479 | Q67: =MAX(Q55:Q66) -> 71.517433
K69: =+A8 -> 2024 | L69: mg/Nm3 | M69: 95%ile 10-min avg maximum | N69: Monthly CO 10-min avg mean | O69: 10-min avg maximum | P69: Monthly daily mean | Q69: Monthly daily maximum
K70: A5 | L70: Jan
L71: Feb
L72: Mar
L73: Apr
L74: May
L75: Jun
L76: Jul
L77: Aug
L78: Sep
L79: Oct
L80: Nov
L81: Dec
L82: Annual | M82: =AVERAGE(M70:M81) ->  | O82: =MAX(O70:O81) -> 0 | P82: =AVERAGE(P70:P81) ->  | Q82: =MAX(Q70:Q81) -> 0

Sheet NH3
A1: =+'Cover Page'!$B$29 -> Annual Performance Report 2024 | E1: =+'Cover Page'!$B$33 -> Runcorn Energy From Waste Facility
A3: Monitoring of Ammnonia emissions | D3: Whole Installation | G3: See Notes in Cell Q3 | J3: =+A3 -> Monitoring of Ammnonia emissions | N3: Per Combustion Line | Q3: Notes:
Q4: User to add logic to complete Whole installation, Table A5:G18. From the data in Per Combustion Line, Table J6:O79, subject to No. of lines installed
A5: =+'Cover Page'!C39 -> 2024 | B5: 1/2 Hourly Reference Periods | E5: Daily Reference Periods
A6: mg/Nm3 | B6: 1/2 hourly NH3 ELV | C6: Monthly mean of half-hourly averages | D6: Highest half- hourly average | E6: Daily NH3 ELV | F6: Monthly mean of daily averages | G6: Highest daily average | J6: =+A5 -> 2024 | K6: mg/Nm3 | L6: Monthly mean of half-hourly averages | M6: Highest half- hourly average | N6: Monthly mean of daily averages | O6: Highest daily average
A7: Jan | B7: None | C7: =AVERAGE(L7,L22,L37,L52) -> 0.2637758806 | D7: =MAX(M7,M22,M37,M52) -> 12.548048 | E7: 15 | F7: =AVERAGE(N7,N22,N37,N52) -> 0.263398947 | G7: =MAX(O7,O22,O37,O52) -> 1.090048 | J7: A1 | K7: Jan | L7: 0.2703238257 | M7: 1.903112 | N7: 0.2703239474 | O7: 0.793716
A8: Feb | B8: =+B7 -> None | C8: =AVERAGE(L8,L23,L38,L53) -> 0.3001016232 | D8: =MAX(M8,M23,M38,M53) -> 13.572878 | E8: 15 | F8: =AVERAGE(N8,N23,N38,N53) -> 0.2981016981 | G8: =MAX(O8,O23,O38,O53) -> 1.857668 | K8: Feb | L8: 0.413241434 | M8: 4.330441 | N8: 0.4137329286 | O8: 1.214295
A9: Mar | B9: =+B8 -> None | C9: =AVERAGE(L9,L24,L39,L54) -> 0.1970470405 | D9: 14.942271 | E9: 15 | F9: 0.1907235411 | G9: 0.725754 | K9: Mar | L9: 0.3033890445 | M9: 2.535108 | N9: 0.30572564 | O9: 0.725754 | Q9: Whole Installation table A5:G18:
A10: Apr | B10: None | C10: =AVERAGE(L10,L25,L40,L55) -> 0.2295797162 | D10: 19.946365 | E10: 15 | F10: 0.2246603594 | G10: 1.098641 | K10: Apr | L10: 0.1487685392 | M10: 14.391336 | N10: 0.1334347778 | O10: 0.576732 | Q10: Mean: for 1/2 hourly and daily periods calculate mean of values across all operational combustion lines for the month
A11: May | B11: None | C11: 0.5466655048 | D11: 9.254148 | E11: 15 | F11: 0.5406140528 | G11: 2.279245 | K11: May | L11: 0.02368496911 | M11: 1.363735 | N11: 0.023685 | O11: 0.139663
A12: Jun | B12: None | C12: 0.2761920356 | D12: 3.171135 | E12: 15 | F12: 0.2766718167 | G12: 2.287526 | K12: Jun | L12: 0.2687444444 | M12: 3.171135 | N12: 0.2687445667 | O12: 2.095025
A13: Jul | B13: None | C13: =AVERAGE(L13,L28,L43,L58) -> 0.1949979748 | D13: =MAX(M13,M28,M43,M58) -> 3.3443 | E13: 15 | F13: =AVERAGE(N13,N28,N43,N58) -> 0.1783814416 | G13: =MAX(O13,O28,O43,O58) -> 1.165913 | K13: Jul | L13: 0.1022564085 | M13: 3.256063 | N13: 0.03692128 | O13: 0.301368 | Q13: Maximum: for 1/2 hourly and daily periods use the highest value across all operational combustion lines for the month
A14: Aug | B14: None | C14: =AVERAGE(L14,L29,L44,L59) -> 0.1102576892 | D14: =MAX(M14,M29,M44,M59) -> 4.414624 | E14: 15 | F14: =AVERAGE(N14,N29,N44,N59) -> 0.1076277011 | G14: =MAX(O14,O29,O44,O59) -> 0.669023 | K14: Aug | L14: 0.007109893244 | M14: 0.250573 | N14: 0.00710804 | O14: 0.056441
A15: Sep | B15: None | C15: =AVERAGE(L15,L30,L45,L60) -> 0.2022981253 | D15: =MAX(M15,M30,M45,M60) -> 2.548543 | E15: 15 | F15: =AVERAGE(N15,N30,N45,N60) -> 0.1939852378 | G15: =MAX(O15,O30,O45,O60) -> 0.935638 | K15: Sep | L15: 0.04547452437 | M15: 2.548543 | N15: 0.04581496429 | O15: 0.353671
A16: Oct | B16: None | C16: =AVERAGE(L16,L31,L46,L61) -> 0.195 | D16: =MAX(M16,M31,M46,M61) -> 2.72 | E16: 15 | F16: =AVERAGE(N16,N31,N46,N61) -> 0.1975 | G16: =MAX(O16,O31,O46,O61) -> 1.12 | K16: Oct | L16: 0.04 | M16: 0.74 | N16: 0.04 | O16: 0.16
A17: Nov | B17: None | C17: =AVERAGE(L17,L32,L47,L62) -> 0.12 | D17: =MAX(M17,M32,M47,M62) -> 18.24 | E17: 15 | F17: =AVERAGE(N17,N32,N47,N62) -> 0.0925 | G17: =MAX(O17,O32,O47,O62) -> 0.48 | K17: Nov | L17: 0.07 | M17: 3.11 | N17: 0.04 | O17: 0.13
A18: Dec | B18: None | C18: =AVERAGE(L18,L33,L48,L63) -> 0.1725 | D18: 5.74 | E18: 15 | F18: 0.165 | G18: 1.01 | K18: Dec | L18: 0.09 | M18: 2.62 | N18: 0.08 | O18: 0.38
K19: Annual | L19: =AVERAGE(L7:L18) -> 0.1485827569 | M19: =MAX(M7:M18) -> 14.391336 | N19: =AVERAGE(N7:N18) -> 0.1387909287 | O19: =MAX(O7:O18) -> 2.095025
J21: =+A5 -> 2024 | K21: mg/Nm3 | L21: Monthly mean of half-hourly averages | M21: Highest half- hourly average | N21: Monthly mean of daily averages | O21: Highest daily average
J22: A2 | K22: Jan | L22: 0.4703154862 | M22: 12.548048 | N22: 0.4695989565 | O22: 1.090048
K23: Feb | L23: 0.03251435725 | M23: 1.290612 | N23: 0.03251440741 | O23: 0.148895
K24: Mar | L24: 0.01818570982 | M24: 0.643645 | N24: 0.01820467857 | O24: 0.069436
K25: Apr | L25: 0.3495713692 | M25: 1.426135 | N25: 0.3472804375 | O25: 1.098641
K26: May | L26: 1.914265227 | M26: 9.254148 | N26: 1.8908256 | O26: 2.279245
K27: Jun | L27: 0.3419625035 | M27: 2.571087 | N27: 0.3451238 | O27: 2.287526
K28: Jul | L28: 0.02313372312 | M28: 0.757586 | N28: 0.02314622581 | O28: 0.154713
K29: Aug | L29: 0.009885613043 | M29: 1.266407 | N29: 0.009897333333 | O29: 0.053022
K30: Sep | L30: 0.06001410502 | M30: 1.993585 | N30: 0.02588148 | O30: 0.154015
K31: Oct | L31: 0.06 | M31: 2.72 | N31: 0.05 | O31: 0.24
K32: Nov | L32: 0.03 | M32: 2.77 | N32: 0.03 | O32: 0.18
K33: Dec | L33: 0.02 | M33: 1.07 | N33: 0.02 | O33: 0.13
K34: Annual | L34: =AVERAGE(L22:L33) -> 0.2774873412 | M34: =MAX(M22:M33) -> 12.548048 | N34: =AVERAGE(N22:N33) -> 0.2718727433 | O34: =MAX(O22:O33) -> 2.287526
J36: =+A5 -> 2024 | K36: mg/Nm3 | L36: Monthly mean of half-hourly averages | M36: Highest half- hourly average | N36: Monthly mean of daily averages | O36: Highest daily average
J37: A3 | K37: Jan | L37: 0.2881511102 | M37: 0.965155 | N37: 0.2881510323 | O37: 0.45664
K38: Feb | L38: 0.3990495679 | M38: 2.252456 | N38: 0.3989458966 | O38: 0.894261
K39: Mar | L39: 0.378142968 | M39: 14.942271 | N39: 0.3505629412 | O39: 0.528279
K40: Apr | L40: 0.2876972106 | M40: 19.946365 | N40: 0.2876972222 | O40: 0.602406
K41: May | L41: 0.2100778061 | M41: 3.91704 | N41: 0.2131126111 | O41: 0.537319
K42: Jun | L42: 0.1905475542 | M42: 1.159224 | N42: 0.1905476333 | O42: 0.294213
K43: Jul | L43: 0.2040877373 | M43: 3.3443 | N43: 0.2038529643 | O43: 0.401073
K44: Aug | L44: 0.4066942199 | M44: 4.414624 | N44: 0.3964210741 | O44: 0.669023
K45: Sep | L45: 0.6937346671 | M45: 2.349806 | N45: 0.6941180625 | O45: 0.935638
K46: Oct | L46: 0.4 | M46: 2.68 | N46: 0.4 | O46: 0.56
K47: Nov | L47: 0.38 | M47: 18.24 | N47: 0.3 | O47: 0.48
A48: Comments : | K48: Dec | L48: 0.55 | M48: 5.74 | N48: 0.53 | O48: 1.01
A49: An indicated ELV value of zero in the table above means that no ammonia limit is/was set in the permit. | K49: Annual | L49: =AVERAGE(L37:L48) -> 0.3656819035 | M49: =MAX(M37:M48) -> 19.946365 | N49: =AVERAGE(N37:N48) -> 0.3544507865 | O49: =MAX(O37:O48) -> 1.01
J51: =+A5 -> 2024 | K51: mg/Nm3 | L51: Monthly mean of half-hourly averages | M51: Highest half- hourly average | N51: Monthly mean of daily averages | O51: Highest daily average
J52: A4 | K52: Jan | L52: 0.02631310045 | M52: 0.387165 | N52: 0.02552185185 | O52: 0.092894
K53: Feb | L53: 0.3556011337 | M53: 13.572878 | N53: 0.34721356 | O53: 1.857668
K54: Mar | L54: 0.08847043948 | M54: 1.484251 | N54: 0.08840090476 | O54: 0.639252
K55: Apr | L55: 0.1322817458 | M55: 4.543156 | N55: 0.130229 | O55: 0.348647
K56: May | L56: 0.03863401698 | M56: 4.356464 | N56: 0.034833 | O56: 0.205666
K57: Jun | L57: 0.3035136405 | M57: 2.638906 | N57: 0.3022712667 | O57: 0.838732
K58: Jul | L58: 0.4505140302 | M58: 2.945025 | N58: 0.4496052963 | O58: 1.165913
K59: Aug | L59: 0.01734103053 | M59: 0.849944 | N59: 0.01708435714 | O59: 0.068938
K60: Sep | L60: 0.009969204571 | M60: 1.088911 | N60: 0.01012644444 | O60: 0.043598
K61: Oct | L61: 0.28 | M61: 2.5 | N61: 0.3 | O61: 1.12
K62: Nov | L62: 0 | M62: 0.8 | N62: 0 | O62: 0.1
K63: Dec | L63: 0.03 | M63: 2.78 | N63: 0.03 | O63: 0.32
K64: Annual | L64: =AVERAGE(L52:L63) -> 0.1443865285 | M64: =MAX(M52:M63) -> 13.572878 | N64: =AVERAGE(N52:N63) -> 0.1446071401 | O64: =MAX(O52:O63) -> 1.857668
J66: =+A5 -> 2024 | K66: mg/Nm3 | L66: Monthly mean of half-hourly averages | M66: Highest half- hourly average | N66: Monthly mean of daily averages | O66: Highest daily average
J67: A5 | K67: Jan
K68: Feb
K69: Mar
K70: Apr
K71: May
K72: Jun
K73: Jul
K74: Aug
K75: Sep
K76: Oct
K77: Nov
K78: Dec
K79: Annual | L79: =AVERAGE(L67:L78) ->  | M79: =MAX(M67:M78) -> 0 | N79: =AVERAGE(N67:N78) ->  | O79: =MAX(O67:O78) -> 0

Sheet Template changes log
A1: Log of changes to template (Environment Agency use only)
A3: Date | B3: Description of change | C3: New version number and date
A4: 2024-01-16 | B4: Air (periodic) tab: corrected default O2 reference from 6 to 11% | C4: Version 23.5a (for incinerators) - 16/01/2024
A5: 2024-09-23 | B5: Air (periodic) tab: corrected symbol for Thallium to Tl
A6: 2024-09-23 | B6: Air (periodic) tab: removed last year's references to different emission limit values applying from 03/12/23 and updated all relevant ELVs
A7: 2024-09-23 | B7: Tabs for continuously monitored pollutants (HCl, SO2 etc.): changed terminology in table headings to improve clarity
A8: 2024-09-23 | B8: Tabs for continuously monitored pollutants (HCl, SO2 etc.): removed last year's references to different emission limit values applying from 03/12/23 and updated all relevant ELVs
A9: 2024-09-23 | B9: Perf 1 tab: updated formula for water usage to report m3 rather than litres and corrected error with formula copying operator name
A10: 2024-09-23 | B10: Operational Summary tab: table added on start-ups and shut-downs
A11: 2024-09-23 | B11: Operational Summary tab: table added on dioxins and mercury protocols
A12: 2024-09-23 | B12: Operational Summary tab: table added on AST, QAL 2 and calibration functions
A13: 2024-09-23 | B13: CO2 N2O tab: various changes made to notes to reflect the fact that most plants should now have calibrated CEMS and flow meters + some have C14 samplers and more up to date industry data | C13: Version 24a (for incinerators) - 23/09/24
A14: 2024-11-08 | B14: CO2 N2O tab: Changed the N2O CO2 equivalence factor from 298 to 265 in line with recently updated government greenhouse gas figures: https://www.gov.uk/government/publications/greenhouse-gas-reporting-conversion-factors-2024
A15: 2024-11-08 | B15: CO2 N2O tab: Added an additional requirement for municipal EfW plants to state the yearly average biogenic percentage of the waste by mass, and reference to a document which sets out a methodology for calculating NCV of waste from the results of C14 sampling.
A16: 2024-11-08 | B16: Permit Compliance tab: Two additional columns added + explanatory notes to the table entitled "Summary of non-compliances under the permit" to allow CCS scores to be stated where relevant.
A17: 2024-11-08 | B17: Residue Quality tab: Note added explaining application of TOC and LOI limits and asking operators to report both metrics where measured. | C17: Version 24.1a (for incinerators) - 08/11/24
A18: 2024-11-27 | B18: Operational Summary tab: Tables on mercury & dioxins protocols and ASTs removed (covered instead by new tables added to updated Air 9 periodic monitoring form) | C18: Version 24.2a (for incinerators) - 27/11/24
